Workbook

Sheet Setup
L1: =IF(K6="BWt (Lb)",CONCATENATE("DATA!F14:F28"),CONCATENATE("DATA!E14:E28")) -> DATA!E14:E28 | BB1: Powerlifting (3 lift meet) | BC1: Bench Press Only | BD1: Squat Only | BE1: Deadlift Only | BF1: Push Pull (Bench & Deadlift)
C2: Contest Name | K2: Date | O2: Powerlifting (3 lift meet) | S2: Team Points | X2: FTP Site
X3: Local Folder | AD3: S | AE3: =$G$22 -> 30 | AF3: =$D$22 -> 65
C4: Platform Weight Set | H4: Kg | K4: Weight Classes | O4: Divisions | S4: Place | T4: Points | AD4: B | AE4: =$G$23 -> 22.5 | AF4: =$D$23 -> 55
AD5: D | AE5: =$G$24 -> 25 | AF5: =$D$24 -> 55
C6: Pounds | F6: Kilos | K6: BWt (Kg) | O6: Abbrev | P6: Description | Q6: Scoring | S6: 1 | T6: 3
C7: =LEFT(TRIM(Lifting!B3),1) -> D | D7: =ABS(Lifting!D3) ->  | G7: =ABS(Lifting!D3) ->  | O7: M_OR_APF | P7: Male Open Raw APF | Q7: 1 | T7: 2
C8: How | D8: Pound | E8: LOAD | F8: How | G8: Kilo | H8: LOAD | J8: limit | K8: Men | M8: Women | O8: M_OR_AAPF | P8: Male Open Raw AAPF | Q8: 1 | T8: 1
C9: Many? | D9: Plates | E9: on Bar | F9: Many? | G9: Plates | H9: on Bar | J9: 10 | K9: 52 | L9: 10 | M9: 44 | O9: M_OCR_APF | P9: Male Open Classic Raw APF | Q9: 1 | T9: 0
C10: 0 | D10: 110 | E10: =IF(OR(D7=0,H4="Kg"),0,MIN(INT(($D$7-VLOOKUP($C$7,$AD$3:$AF$5,3,FALSE))/(2*D10)),C10/2)) ->  | F10: 0 | G10: 50 | H10: =IF(OR(G7=0,H4="Lb"),0,MIN(INT(($G$7-VLOOKUP($C$7,$AD$3:$AF$5,2,FALSE))/(2*G10)),F10/2)) ->  | J10: =IF(K9="SHW",1000,IF(K10="",J9+1,IF(ISERROR(VLOOKUP(K9,DATA!$F$32:$G$59,2,FALSE)),K9,VLOOKUP(K9,DATA!$F$32:$G$59,2,FALSE))+0.0001)) -> 52.0001 | K10: 56 | L10: 44.0001 | M10: 48 | O10: M_OCR_AAPF | P10: Male Open Classic Raw AAPF | Q10: 1 | T10: 0
C11: 8 | D11: 100 | E11: =IF(OR(D7=0,H4="Kg"),0,MIN(INT(($D$7-VLOOKUP($C$7,$AD$3:$AF$5,3,FALSE)-2*E10*D10)/(2*D11)),C11/2)) ->  | F11: 0 | G11: 45 | H11: =IF(OR(G7=0,H4="Lb"),0,MIN(INT(($G$7-VLOOKUP($C$7,$AD$3:$AF$5,2,FALSE)-2*H10*G10)/(2*G11)),F11/2)) ->  | J11: =IF(K10="SHW",1000,IF(K11="",J10+1,IF(ISERROR(VLOOKUP(K10,DATA!$F$32:$G$59,2,FALSE)),K10,VLOOKUP(K10,DATA!$F$32:$G$59,2,FALSE))+0.001)) -> 56.001 | K11: 60 | L11: 48.001 | M11: 52 | O11: M_OEM_APF | P11: Male Open Equipped Multiply APF | Q11: 1 | T11: 0
C12: 0 | D12: 50 | E12: =IF(OR(D7=0,H4="Kg"),0,MIN(INT(($D$7-VLOOKUP($C$7,$AD$3:$AF$5,3,FALSE)-2*E10*D10-2*E11*D11)/(2*D12)),C12/2)) ->  | F12: 20 | G12: 25 | H12: =IF(OR(G7=0,H4="Lb"),0,MIN(INT(($G$7-VLOOKUP($C$7,$AD$3:$AF$5,2,FALSE)-2*H10*G10-2*H11*G11)/(2*G12)),F12/2)) ->  | J12: =IF(K11="SHW",1000,IF(K12="",J11+1,IF(ISERROR(VLOOKUP(K11,DATA!$F$32:$G$59,2,FALSE)),K11,VLOOKUP(K11,DATA!$F$32:$G$59,2,FALSE))+0.001)) -> 60.001 | K12: 67.5 | L12: 52.001 | M12: 56 | O12: M_OEM_AAPF | P12: Male Open Equipped Multiply AAPF | Q12: 1 | T12: 0
C13: 10 | D13: 45 | E13: =IF(OR(D7=0,H4="Kg"),0,MIN(INT(($D$7-VLOOKUP($C$7,$AD$3:$AF$5,3,FALSE)-2*E10*D10-2*E11*D11-2*E12*D12)/(2*D13)),C13/2)) ->  | F13: 2 | G13: 20 | H13: =IF(OR(G7=0,H4="Lb"),0,MIN(INT(($G$7-VLOOKUP($C$7,$AD$3:$AF$5,2,FALSE)-2*H10*G10-2*H11*G11-2*H12*G12)/(2*G13)),F13/2)) ->  | J13: =IF(K12="SHW",1000,IF(K13="",J12+1,IF(ISERROR(VLOOKUP(K12,DATA!$F$32:$G$59,2,FALSE)),K12,VLOOKUP(K12,DATA!$F$32:$G$59,2,FALSE))+0.001)) -> 67.501 | K13: 75 | L13: 56.001 | M13: 60 | O13: M_OES_APF | P13: Male Open Equipped Single-Ply APF | Q13: 1 | T13: 0
C14: 2 | D14: 35 | E14: =IF(OR(D7=0,H4="Kg"),0,MIN(INT(($D$7-VLOOKUP($C$7,$AD$3:$AF$5,3,FALSE)-2*E10*D10-2*E11*D11-2*E12*D12-2*E13*D13)/(2*D14)),C14/2)) ->  | F14: 0 | G14: 15 | H14: =IF(OR(G7=0,H4="Lb"),0,MIN(INT(($G$7-VLOOKUP($C$7,$AD$3:$AF$5,2,FALSE)-2*H10*G10-2*H11*G11-2*H12*G12-2*H13*G13)/(2*G14)),F14/2)) ->  | J14: =IF(K13="SHW",1000,IF(K14="",J13+1,IF(ISERROR(VLOOKUP(K13,DATA!$F$32:$G$59,2,FALSE)),K13,VLOOKUP(K13,DATA!$F$32:$G$59,2,FALSE))+0.001)) -> 75.001 | K14: 82.5 | L14: 60.001 | M14: 67.5 | O14: M_OES_AAPF | P14: Male Open Equipped Single-Ply AAPF | Q14: 1 | T14: 0
C15: 2 | D15: 25 | E15: =IF(OR(D7=0,H4="Kg"),0,MIN(INT(($D$7-VLOOKUP($C$7,$AD$3:$AF$5,3,FALSE)-2*E10*D10-2*E11*D11-2*E12*D12-2*E13*D13-2*E14*D14)/(2*D15)),C15/2)) ->  | F15: 2 | G15: 10 | H15: =IF(OR(G7=0,H4="Lb"),0,MIN(INT(($G$7-VLOOKUP($C$7,$AD$3:$AF$5,2,FALSE)-2*H10*G10-2*H11*G11-2*H12*G12-2*H13*G13-2*H14*G14)/(2*G15)),F15/2)) ->  | J15: =IF(K14="SHW",1000,IF(K15="",J14+1,IF(ISERROR(VLOOKUP(K14,DATA!$F$32:$G$59,2,FALSE)),K14,VLOOKUP(K14,DATA!$F$32:$G$59,2,FALSE))+0.001)) -> 82.501 | K15: 90 | L15: 67.501 | M15: 75 | O15: M_TR_1_APF | P15: Male Teen 1 Raw APF: 13-15 | Q15: 1 | T15: 0
C16: 4 | D16: 10 | E16: =IF(OR(D7=0,H4="Kg"),0,MIN(INT(($D$7-VLOOKUP($C$7,$AD$3:$AF$5,3,FALSE)-2*E10*D10-2*E11*D11-2*E12*D12-2*E13*D13-2*E14*D14-2*E15*D15)/(2*D16)),C16/2)) ->  | F16: 2 | G16: 5 | H16: =IF(OR(G7=0,H4="Lb"),0,MIN(INT(($G$7-VLOOKUP($C$7,$AD$3:$AF$5,2,FALSE)-2*H10*G10-2*H11*G11-2*H12*G12-2*H13*G13-2*H14*G14-2*H15*G15)/(2*G16)),F16/2)) ->  | J16: =IF(K15="SHW",1000,IF(K16="",J15+1,IF(ISERROR(VLOOKUP(K15,DATA!$F$32:$G$59,2,FALSE)),K15,VLOOKUP(K15,DATA!$F$32:$G$59,2,FALSE))+0.001)) -> 90.001 | K16: 100 | L16: 75.001 | M16: 82.5 | O16: M_TR_1_AAPF | P16: Male Teen 1 Raw AAPF: 13-15 | Q16: 1
C17: 2 | D17: 5 | E17: =IF(OR(D7=0,H4="Kg"),0,MIN(INT(($D$7-VLOOKUP($C$7,$AD$3:$AF$5,3,FALSE)-2*E10*D10-2*E11*D11-2*E12*D12-2*E13*D13-2*E14*D14-2*E15*D15-2*E16*D16)/(2*D17)),C17/2)) ->  | F17: 2 | G17: 2.5 | H17: =IF(OR(G7=0,H4="Lb"),0,MIN(INT(($G$7-VLOOKUP($C$7,$AD$3:$AF$5,2,FALSE)-2*H10*G10-2*H11*G11-2*H12*G12-2*H13*G13-2*H14*G14-2*H15*G15-2*H16*G16)/(2*G17)),F17/2)) ->  | J17: =IF(K16="SHW",1000,IF(K17="",J16+1,IF(ISERROR(VLOOKUP(K16,DATA!$F$32:$G$59,2,FALSE)),K16,VLOOKUP(K16,DATA!$F$32:$G$59,2,FALSE))+0.001)) -> 100.001 | K17: 110 | L17: 82.501 | M17: 90 | O17: M_TCR_1_APF | P17: Male Teen 1 Classic Raw APF: 13-15 | Q17: 1
C18: 2 | D18: 2.5 | E18: =IF(OR(D7=0,H4="Kg"),0,MIN(INT(($D$7-VLOOKUP($C$7,$AD$3:$AF$5,3,FALSE)-2*E10*D10-2*E11*D11-2*E12*D12-2*E13*D13-2*E14*D14-2*E15*D15-2*E16*D16-2*E17*D17)/(2*D18)),C18/2)) ->  | F18: 2 | G18: 1.25 | H18: =IF(OR(G7=0,H4="Lb"),0,INT(($G$7-VLOOKUP($C$7,$AD$3:$AF$5,2,FALSE)-2*H10*G10-2*H11*G11-2*H12*G12-2*H13*G13-2*H14*G14-2*H15*G15-2*H16*G16-2*H17*G17)/(2*G18))) ->  | J18: =IF(K17="SHW",1000,IF(K18="",J17+1,IF(ISERROR(VLOOKUP(K17,DATA!$F$32:$G$59,2,FALSE)),K17,VLOOKUP(K17,DATA!$F$32:$G$59,2,FALSE))+0.001)) -> 110.001 | K18: 125 | L18: 90.001 | M18: SHW | O18: M_TCR_1_AAPF | P18: Male Teen 1 Classic Raw AAPF: 13-15 | Q18: 1
C19: 0 | D19: 1 | E19: =IF(OR(D7=0,H4="Kg"),0,MIN(INT(($D$7-VLOOKUP($C$7,$AD$3:$AF$5,3,FALSE)-2*E10*D10-2*E11*D11-2*E12*D12-2*E13*D13-2*E14*D14-2*E15*D15-2*E16*D16-2*E17*D17-2*E18*D18)/(2*D19)),C19/2)) ->  | F19: 2 | G19: 0.5 | H19: =IF(OR(G7=0,H4="Lb"),0,INT(($G$7-VLOOKUP($C$7,$AD$3:$AF$5,2,FALSE)-2*H10*G10-2*H11*G11-2*H12*G12-2*H13*G13-2*H14*G14-2*H15*G15-2*H16*G16-2*H17*G17-2*H18*G18)/(2*G19))) ->  | J19: =IF(K18="SHW",1000,IF(K19="",J18+1,IF(ISERROR(VLOOKUP(K18,DATA!$F$32:$G$59,2,FALSE)),K18,VLOOKUP(K18,DATA!$F$32:$G$59,2,FALSE))+0.001)) -> 125.001 | K19: 140 | L19: 1000 | O19: M_TEM_1_APF | P19: Male Teen 1 Equipped Multiply APF: 13-15 | Q19: 1
C20: 0 | D20: 0.5 | E20: =IF(OR(D7=0,H4="Kg"),0,MIN(INT(($D$7-VLOOKUP($C$7,$AD$3:$AF$5,3,FALSE)-2*E10*D10-2*E11*D11-2*E12*D12-2*E13*D13-2*E14*D14-2*E15*D15-2*E16*D16-2*E17*D17-2*E18*D18-2*E19*D19)/(2*D20)),C20/2)) ->  | F20: 0 | G20: 0.25 | H20: =IF(OR(G7=0,H4="Lb"),0,INT(($G$7-VLOOKUP($C$7,$AD$3:$AF$5,2,FALSE)-2*H10*G10-2*H11*G11-2*H12*G12-2*H13*G13-2*H14*G14-2*H15*G15-2*H16*G16-2*H17*G17-2*H18*G18-2*H19*G19)/(2*G20))) ->  | J20: =IF(K19="SHW",1000,IF(K20="",J19+1,IF(ISERROR(VLOOKUP(K19,DATA!$F$32:$G$59,2,FALSE)),K19,VLOOKUP(K19,DATA!$F$32:$G$59,2,FALSE))+0.001)) -> 140.001 | K20: SHW | L20: 1001 | O20: M_TEM_1_AAPF | P20: Male Teen 1 Equipped Multiply AAPF: 13-15 | Q20: 1
C21: Bar plus Collars | E21: 1 | F21: Bar plus Collars | H21: 1 | J21: =IF(K20="SHW",1000,IF(K21="",J20+1,IF(ISERROR(VLOOKUP(K20,DATA!$F$32:$G$59,2,FALSE)),K20,VLOOKUP(K20,DATA!$F$32:$G$59,2,FALSE))+0.001)) -> 1000 | L21: =IF(M20="SHW",1000,IF(M21="",L20+1,IF(ISERROR(VLOOKUP(M20,DATA!$F$32:$G$59,2,FALSE)),M20,VLOOKUP(M20,DATA!$F$32:$G$59,2,FALSE))+0.001)) -> 1002 | O21: M_TES_1_APF | P21: Male Teen 1 Equipped Single-Ply APF: 13-15 | Q21: 1
C22: Squat | D22: 65 | E22: Pounds | F22: Squat | G22: 30 | H22: Kilos | J22: =IF(K21="SHW",1000,IF(K22="",J21+1,IF(ISERROR(VLOOKUP(K21,DATA!$F$32:$G$59,2,FALSE)),K21,VLOOKUP(K21,DATA!$F$32:$G$59,2,FALSE))+0.001)) -> 1001 | L22: =IF(M21="SHW",1000,IF(M22="",L21+1,IF(ISERROR(VLOOKUP(M21,DATA!$F$32:$G$59,2,FALSE)),M21,VLOOKUP(M21,DATA!$F$32:$G$59,2,FALSE))+0.001)) -> 1003 | O22: M_TES_1_AAPF | P22: Male Teen 1 Equipped Single-PlyAAPF: 13-15 | Q22: 1
C23: BP | D23: 55 | F23: BP | G23: 22.5 | J23: =IF(K22="SHW",1000,IF(K23="",J22+1,IF(ISERROR(VLOOKUP(K22,DATA!$F$32:$G$59,2,FALSE)),K22,VLOOKUP(K22,DATA!$F$32:$G$59,2,FALSE))+0.001)) -> 1002 | L23: =IF(M22="SHW",1000,IF(M23="",L22+1,IF(ISERROR(VLOOKUP(M22,DATA!$F$32:$G$59,2,FALSE)),M22,VLOOKUP(M22,DATA!$F$32:$G$59,2,FALSE))+0.001)) -> 1004 | O23: M_TR_2_APF | P23: Male Teen 2 Raw APF: 16-17 | Q23: 1
C24: DL | D24: 55 | F24: DL | G24: 25 | O24: M_TR_2_AAPF | P24: Male Teen 2 Raw AAPF: 16-17 | Q24: 1
D25: Results - Lbs & Kgs? | G25: yes | O25: M_TCR_2_APF | P25: Male Teen 2 Classic Raw APF: 16-17 | Q25: 1
O26: M_TCR_2_AAPF | P26: Male Teen 2 Classic Raw AAPF: 16-17 | Q26: 1
O27: M_TEM_2_APF | P27: Male Teen 2 Equipped Multiply APF: 16-17 | Q27: 1
D28: Reset for New Contest | K28: Best Lifter Coeff | O28: M_TEM_2_AAPF | P28: Male Teen 2 Equipped Multiply AAPF: 16-17 | Q28: 1
O29: M_TES_2_APF | P29: Male Teen 2 Equipped Single-Ply APF: 16-17 | Q29: 1
K30: Glossbrenner | O30: M_TES_2_AAPF | P30: Male Teen 2 Equipped Single-Ply AAPF: 16-17 | Q30: 1
O31: M_TR_3_APF | P31: Male Teen 3 Raw APF: 18-19 | Q31: 1
O32: M_TR_3_AAPF | P32: Male Teen 3 Raw AAPF: 18-19 | Q32: 1
C33: Web Upload | F33: Disable | O33: M_TCR_3_APF | P33: Male Teen 3 Classic Raw APF: 18-19 | Q33: 1
C34: FTP site | O34: M_TCR_3_AAPF | P34: Male Teen 3 Classic Raw AAPF: 18-19 | Q34: 1
C35: User Name | O35: M_TEM_3_APF | P35: Male Teen 3 Equipped Mulitply APF: 18-19 | Q35: 1
C36: Folder/File Name | O36: M_TEM_3_AAPF | P36: Male Teen 3 Equipped Mulitply AAPF: 18-19 | Q36: 1
O37: M_TES_3_APF | P37: Male Teen 3 Equipped Single-Ply APF: 18-19 | Q37: 1
E38: Website | O38: M_TES_3_AAPF | P38: Male Teen 3 Equipped Single-Ply AAPF: 18-19 | Q38: 1
O39: M_JR_APF | P39: Male Junior Raw APF: 20-23 | Q39: 1
O40: M_JR_AAPF | P40: Male Junior Raw AAPF: 20-23 | Q40: 1
C41: BarLoad Upload | F41: Disable | O41: M_JCR_APF | P41: Male Junior Classic Raw APF: 20-23 | Q41: 1
C42: Local Folder | E42: C:\wamp\www\BarLoad | O42: M_JCR_AAPF | P42: Male Junior Classic Raw AAPF: 20-23 | Q42: 1
C43: User Name | O43: M_JEM_APF | P43: Male Junior Equipped Mulitply APF: 20-23 | Q43: 1
C44: Folder/File Name | E44: NextLifter_BarLoad | O44: M_JEM_AAPF | P44: Male Junior Equipped Mulitply AAPF: 20-23 | Q44: 1
O45: M_JES_APF | P45: Male Junior Equipped Single-Ply APF: 20-23 | Q45: 1
E46: Website | O46: M_JES_AAPF | P46: Male Junior Equipped Single-Ply AAPF: 20-23 | Q46: 1
C47: C:\wamp\www\BarLoad\NextLifter_BarLoad.htm | O47: M_SR_APF | P47: Male Sub-Master Raw APF: 33-39 | Q47: 1
O48: M_SR_AAPF | P48: Male Sub-Master Raw AAPF: 33-39 | Q48: 1
O49: M_SCR_APF | P49: Male Sub-Master Classic Raw APF: 33-39 | Q49: 1
O50: M_SCR_AAPF | P50: Male Sub-Master Classic Raw AAPF: 33-39 | Q50: 1
O51: M_SEM_APF | P51: Male Sub-Master Equipped Multiply APF: 33-39 | Q51: 1
O52: M_SEM_AAPF | P52: Male Sub-Master Equipped Multiply AAPF: 33-39 | Q52: 1
O53: M_SES_APF | P53: Male Sub-Master Equipped Single-Ply APF: 33-39 | Q53: 1
O54: M_SES_AAPF | P54: Male Sub-Master Equipped Single-Ply AAPF: 33-39 | Q54: 1
O55: M_MR_1_APF | P55: Male Master 1 Raw APF: 40-44 | Q55: 1
O56: M_MR_1_AAPF | P56: Male Master 1 Raw AAPF: 40-44 | Q56: 1
O57: M_MCR_1_APF | P57: Male Master 1 Classic Raw APF: 40-44 | Q57: 1
O58: M_MCR_1_AAPF | P58: Male Master 1 Classic Raw AAPF: 40-44 | Q58: 1
O59: M_MEM_1_APF | P59: Male Master 1 Equipped Multiply APF: 40-44 | Q59: 1
O60: M_MEM_1_AAPF | P60: Male Master 1 Equipped Multiply AAPF: 40-44 | Q60: 1
O61: M_MES_1_APF | P61: Male Master 1 Equipped Single-Ply APF: 40-44 | Q61: 1
O62: M_MES_1_AAPF | P62: Male Master 1 Equipped Single-Ply AAPF: 40-44 | Q62: 1
O63: M_MR_2_APF | P63: Male Master 2 Raw APF: 45-49 | Q63: 1
O64: M_MR_2_AAPF | P64: Male Master 2 Raw AAPF: 45-49 | Q64: 1
O65: M_MCR_2_APF | P65: Male Master 2 Classic Raw APF: 45-49 | Q65: 1
O66: M_MCR_2_AAPF | P66: Male Master 2 Classic Raw AAPF: 45-49 | Q66: 1
O67: M_MEM_2_APF | P67: Male Master 2 Equipped Mulitply APF: 45-49 | Q67: 1
O68: M_MEM_2_AAPF | P68: Male Master 2 Equipped Multiply AAPF: 45-49 | Q68: 1
O69: M_MES_2_APF | P69: Male Master 2 Equipped Single-Ply APF: 45-49 | Q69: 1
O70: M_MES_2_AAPF | P70: Male Master 2 Equipped Sinlge-Ply AAPF: 45-49 | Q70: 1
O71: M_MR_3_APF | P71: Male Master 3 Raw APF: 50-54 | Q71: 1
O72: M_MR_3_AAPF | P72: Male Master 3 Raw AAPF: 50-54 | Q72: 1
O73: M_MCR_3_APF | P73: Male Master 3 Classic Raw APF: 50-54 | Q73: 1
O74: M_MCR_3_AAPF | P74: Male Master 3 Classic Raw AAPF: 50-54 | Q74: 1
O75: M_MEM_3_APF | P75: Male Master 3 Equipped Mulitply APF: 50-54 | Q75: 1
O76: M_MEM_3_AAPF | P76: Male Master 3 Equipped Multiply AAPF: 50-54 | Q76: 1
O77: M_MES_3_APF | P77: Male Master 3 Equipped Single-Ply APF: 50-54 | Q77: 1
O78: M_MES_3_AAPF | P78: Male Master 3 Equipped Single-Ply AAPF: 50-54 | Q78: 1
O79: M_MR_4_APF | P79: Male Master 4 Raw APF: 55-59 | Q79: 1
O80: M_MR_4_AAPF | P80: Male Master 4 Raw AAPF: 55-59 | Q80: 1
O81: M_MCR_4_APF | P81: Male Master 4 Classic Raw APF: 55-59 | Q81: 1
O82: M_MCR_4_AAPF | P82: Male Master 4 Classic Raw AAPF: 55-59 | Q82: 1
O83: M_MEM_4_APF | P83: Male Master 4 Equipped Mulitply APF: 55-59 | Q83: 1
O84: M_MEM_4_AAPF | P84: Male Master 4 Equipped Multiply AAPF: 55-59 | Q84: 1
O85: M_MES_4_APF | P85: Male Master 4 Equipped Single-Ply APF: 55-59 | Q85: 1
O86: M_MES_4_AAPF | P86: Male Master 4 Equipped Single-Ply AAPF: 55-59 | Q86: 1
O87: M_MR_5_APF | P87: Male Master 5 Raw APF: 60-64 | Q87: 1
O88: M_MR_5_AAPF | P88: Male Master 5 Raw AAPF: 60-64 | Q88: 1
O89: M_MCR_5_APF | P89: Male Master 5 Classic Raw APF: 60-64 | Q89: 1
O90: M_MCR_5_AAPF | P90: Male Master 5 Classic Raw AAPF: 60-64 | Q90: 1
O91: M_MEM_5_APF | P91: Male Master 5 Equipped Multiply APF: 60-64 | Q91: 1
O92: M_MEM_5_AAPF | P92: Male Master 5 Equipped Multiply AAPF: 60-64 | Q92: 1
O93: M_MES_5_APF | P93: Male Master 5 Equipped Single-Ply APF: 60-64 | Q93: 1
O94: M_MES_5_AAPF | P94: Male Master 5 Equipped Single-Ply AAPF: 60-64 | Q94: 1
O95: M_MR_6_APF | P95: Male Master 6 Raw APF: 65-69 | Q95: 1
O96: M_MR_6_AAPF | P96: Male Master 6 Raw AAPF: 65-69 | Q96: 1
O97: M_MCR_6_APF | P97: Male Master 6 Classic Raw APF: 65-69 | Q97: 1
O98: M_MCR_6_AAPF | P98: Male Master 6 Classic Raw AAPF: 65-69 | Q98: 1
O99: M_MEM_6_APF | P99: Male Master 6 Equipped Multiply APF: 65-69 | Q99: 1
O100: M_MEM_6_AAPF | P100: Male Master 6 Equipped Multiply AAPF: 65-69 | Q100: 1
O101: M_MES_6_APF | P101: Male Master 6 Equipped Single-Ply APF: 65-69 | Q101: 1
O102: M_MES_6_AAPF | P102: Male Master 6 Equipped Single-Ply AAPF: 65-69 | Q102: 1
O103: M_MR_7_APF | P103: Male Master 7 Raw APF: 70-74 | Q103: 1
O104: M_MR_7_AAPF | P104: Male Master 7 Raw AAPF: 70-74 | Q104: 1
O105: M_MCR_7_APF | P105: Male Master 7 Classic Raw APF: 70-74 | Q105: 1
O106: M_MCR_7_AAPF | P106: Male Master 7 Classic Raw AAPF: 70-74 | Q106: 1
O107: M_MEM_7_APF | P107: Male Master 7 Equipped Multiply APF: 70-74 | Q107: 1
O108: M_MEM_7_AAPF | P108: Male Master 7 Equipped Multiply AAPF: 70-74 | Q108: 1
O109: M_MES_7_APF | P109: Male Master 7 Equipped Single-Ply APF: 70-74 | Q109: 1
O110: M_MES_7_AAPF | P110: Male Master 7 Equipped Single-Ply AAPF: 70-74 | Q110: 1
O111: M_MR_8_APF | P111: Male Master 8 Raw APF: 75-79 | Q111: 1
O112: M_MR_8_AAPF | P112: Male Master 8 Raw AAPF: 75-79 | Q112: 1
O113: M_MCR_8_APF | P113: Male Master 8 Classic Raw APF: 75-79 | Q113: 1
O114: M_MCR_8_AAPF | P114: Male Master 8 Classic Raw AAPF: 75-79 | Q114: 1
O115: M_MEM_8_APF | P115: Male Master 8 Equipped Mulitply APF: 75-79 | Q115: 1
O116: M_MEM_8_AAPF | P116: Male Master 8 Equipped Multiply AAPF: 75-79 | Q116: 1
O117: M_MES_8_APF | P117: Male Master 8 Equipped Single-Ply APF: 75-79 | Q117: 1
O118: M_MES_8_AAPF | P118: Male Master 8 Equipped Single-Ply AAPF: 75-79 | Q118: 1
O119: M_MR_9_APF | P119: Male Master 9 Raw APF: 80+ | Q119: 1
O120: M_MR_9_AAPF | P120: Male Master 9 Raw AAPF: 80+ | Q120: 1
O121: M_MCR_9_APF | P121: Male Master 9 Classic Raw APF: 80+ | Q121: 1
O122: M_MCR_9_AAPF | P122: Male Master 9 Classic Raw AAPF: 80+ | Q122: 1
O123: M_MEM_9_APF | P123: Male Master 9 Equipped Multiply APF: 80+ | Q123: 1
O124: M_MEM_9_AAPF | P124: Male Master 9 Equipped Multiply AAPF: 80+ | Q124: 1
O125: M_MES_9_APF | P125: Male Master 9 Equipped Single-Ply APF: 80+ | Q125: 1
O126: M_MES_9_AAPF | P126: Male Master 9 Equipped Single-Ply AAPF: 80+ | Q126: 1
O127: F_OR_APF | P127: Female Open Raw APF | Q127: 1
O128: F_OR_AAPF | P128: Female Open Raw AAPF | Q128: 1
O129: F_OCR_APF | P129: Female Open Classic Raw APF | Q129: 1
O130: F_OCR_AAPF | P130: Female Open Classic Raw AAPF | Q130: 1
O131: F_OEM_APF | P131: Female Open Equipped Multiply APF | Q131: 1
O132: F_OEM_AAPF | P132: Female Open Equipped Multiply AAPF | Q132: 1
O133: F_OES_APF | P133: Female Open Equipped Single-Ply APF | Q133: 1
O134: F_OES_AAPF | P134: Female Open Equipped Single-Ply AAPF | Q134: 1
O135: F_TR_1_APF | P135: Female Teen 1 Raw APF: 13-15 | Q135: 1
O136: F_TR_1_AAPF | P136: Female Teen 1 Raw AAPF: 13-15 | Q136: 1
O137: F_TCR_1_APF | P137: Female Teen 1 Classic Raw APF: 13-15 | Q137: 1
O138: F_TCR_1_AAPF | P138: Female Teen 1 Classic Raw AAPF: 13-15 | Q138: 1
O139: F_TEM_1_APF | P139: Female Teen 1 Equipped Multiply APF: 13-15 | Q139: 1
O140: F_TEM_1_AAPF | P140: Female Teen 1 Equipped Multiply AAPF: 13-15 | Q140: 1
O141: F_TES_1_APF | P141: Female Teen 1 Equipped Single-Ply APF: 13-15 | Q141: 1
O142: F_TES_1_AAPF | P142: Female Teen 1 Equipped Single-PlyAAPF: 13-15 | Q142: 1
O143: F_TR_2_APF | P143: Female Teen 2 Raw APF: 16-17 | Q143: 1
O144: F_TR_2_AAPF | P144: Female Teen 2 Raw AAPF: 16-17 | Q144: 1
O145: F_TCR_2_APF | P145: Female Teen 2 Classic Raw APF: 16-17 | Q145: 1
O146: F_TCR_2_AAPF | P146: Female Teen 2 Classic Raw AAPF: 16-17 | Q146: 1
O147: F_TEM_2_APF | P147: Female Teen 2 Equipped Multiply APF: 16-17 | Q147: 1
O148: F_TEM_2_AAPF | P148: Female Teen 2 Equipped Multiply AAPF: 16-17 | Q148: 1
O149: F_TES_2_APF | P149: Female Teen 2 Equipped Single-Ply APF: 16-17 | Q149: 1
O150: F_TES_2_AAPF | P150: Female Teen 2 Equipped Single-Ply AAPF: 16-17 | Q150: 1
O151: F_TR_3_APF | P151: Female Teen 3 Raw APF: 18-19 | Q151: 1
O152: F_TR_3_AAPF | P152: Female Teen 3 Raw AAPF: 18-19 | Q152: 1
O153: F_TCR_3_APF | P153: Female Teen 3 Classic Raw APF: 18-19 | Q153: 1
O154: F_TCR_3_AAPF | P154: Female Teen 3 Classic Raw AAPF: 18-19 | Q154: 1
O155: F_TEM_3_APF | P155: Female Teen 3 Equipped Mulitply APF: 18-19 | Q155: 1
O156: F_TEM_3_AAPF | P156: Female Teen 3 Equipped Mulitply AAPF: 18-19 | Q156: 1
O157: F_TES_3_APF | P157: Female Teen 3 Equipped Single-Ply APF: 18-19 | Q157: 1
O158: F_TES_3_AAPF | P158: Female Teen 3 Equipped Single-Ply AAPF: 18-19 | Q158: 1
O159: F_JR_APF | P159: Female Junior Raw APF: 20-23 | Q159: 1
O160: F_JR_AAPF | P160: Female Junior Raw AAPF: 20-23 | Q160: 1
O161: F_JCR_APF | P161: Female Junior Classic Raw APF: 20-23 | Q161: 1
O162: F_JCR_AAPF | P162: Female Junior Classic Raw AAPF: 20-23 | Q162: 1
O163: F_JEM_APF | P163: Female Junior Equipped Mulitply APF: 20-23 | Q163: 1
O164: F_JEM_AAPF | P164: Female Junior Equipped Mulitply AAPF: 20-23 | Q164: 1
O165: F_JES_APF | P165: Female Junior Equipped Single-Ply APF: 20-23 | Q165: 1
O166: F_JES_AAPF | P166: Female Junior Equipped Single-Ply AAPF: 20-23 | Q166: 1
O167: F_SR_APF | P167: Female Sub-Master Raw APF: 33-39 | Q167: 1
O168: F_SR_AAPF | P168: Female Sub-Master Raw AAPF: 33-39 | Q168: 1
O169: F_SCR_APF | P169: Female Sub-Master Classic Raw APF: 33-39 | Q169: 1
O170: F_SCR_AAPF | P170: Female Sub-Master Classic Raw AAPF: 33-39 | Q170: 1
O171: F_SEM_APF | P171: Female Sub-Master Equipped Multiply APF: 33-39 | Q171: 1
O172: F_SEM_AAPF | P172: Female Sub-Master Equipped Multiply AAPF: 33-39 | Q172: 1
O173: F_SES_APF | P173: Female Sub-Master Equipped Single-Ply APF: 33-39 | Q173: 1
O174: F_SES_AAPF | P174: Female Sub-Master Equipped Single-Ply AAPF: 33-39 | Q174: 1
O175: F_MR_1_APF | P175: Female Master 1 Raw APF: 40-44 | Q175: 1
O176: F_MR_1_AAPF | P176: Female Master 1 Raw AAPF: 40-44 | Q176: 1
O177: F_MCR_1_APF | P177: Female Master 1 Classic Raw APF: 40-44 | Q177: 1
O178: F_MCR_1_AAPF | P178: Female Master 1 Classic Raw AAPF: 40-44 | Q178: 1
O179: F_MEM_1_APF | P179: Female Master 1 Equipped Multiply APF: 40-44 | Q179: 1
O180: F_MEM_1_AAPF | P180: Female Master 1 Equipped Multiply AAPF: 40-44 | Q180: 1
O181: F_MES_1_APF | P181: Female Master 1 Equipped Single-Ply APF: 40-44 | Q181: 1
O182: F_MES_1_AAPF | P182: Female Master 1 Equipped Single-Ply AAPF: 40-44 | Q182: 1
O183: F_MR_2_APF | P183: Female Master 2 Raw APF: 45-49 | Q183: 1
O184: F_MR_2_AAPF | P184: Female Master 2 Raw AAPF: 45-49 | Q184: 1
O185: F_MCR_2_APF | P185: Female Master 2 Classic Raw APF: 45-49 | Q185: 1
O186: F_MCR_2_AAPF | P186: Female Master 2 Classic Raw AAPF: 45-49 | Q186: 1
O187: F_MEM_2_APF | P187: Female Master 2 Equipped Mulitply APF: 45-49 | Q187: 1
O188: F_MEM_2_AAPF | P188: Female Master 2 Equipped Multiply AAPF: 45-49 | Q188: 1
O189: F_MES_2_APF | P189: Female Master 2 Equipped Single-Ply APF: 45-49 | Q189: 1
O190: F_MES_2_AAPF | P190: Female Master 2 Equipped Sinlge-Ply AAPF: 45-49 | Q190: 1
O191: F_MR_3_APF | P191: Female Master 3 Raw APF: 50-54 | Q191: 1
O192: F_MR_3_AAPF | P192: Female Master 3 Raw AAPF: 50-54 | Q192: 1
O193: F_MCR_3_APF | P193: Female Master 3 Classic Raw APF: 50-54 | Q193: 1
O194: F_MCR_3_AAPF | P194: Female Master 3 Classic Raw AAPF: 50-54 | Q194: 1
O195: F_MEM_3_APF | P195: Female Master 3 Equipped Mulitply APF: 50-54 | Q195: 1
O196: F_MEM_3_AAPF | P196: Female Master 3 Equipped Multiply AAPF: 50-54 | Q196: 1
O197: F_MES_3_APF | P197: Female Master 3 Equipped Single-Ply APF: 50-54 | Q197: 1
O198: F_MES_3_AAPF | P198: Female Master 3 Equipped Single-Ply AAPF: 50-54 | Q198: 1
O199: F_MR_4_APF | P199: Female Master 4 Raw APF: 55-59 | Q199: 1
O200: F_MR_4_AAPF | P200: Female Master 4 Raw AAPF: 55-59 | Q200: 1
... 46 more rows

Sheet Weigh-in
AW1: =CONCATENATE("Setup!O7:O",COUNTA(Setup!O:O)+3) -> Setup!O7:O246 | AZ1: Powerlifting (3 lift meet) | BA1: Bench Press Only | BB1: Squat Only | BC1: Deadlift Only | BD1: Push Pull (Bench & Deadlift) | CA1: 1 | CB1: 2 | CC1: 23 | CD1: 1
B2: Name | C2: Age | D2: Div | E2: =Setup!K6 -> BWt (Kg) | F2: WtCls (Kg) | G2: Wilks Coeff | H2: Lot # | I2: RH Sq | J2: Squat 1 | K2: Squat 2 | L2: Squat 3 | M2: Squat 4 | N2: Best Squat | O2: RH BP | P2: Bench 1 | Q2: Bench 2 | R2: Bench 3 | S2: Bench 4 | T2: Best Bench | U2: Sub Total | V2: Deadlift 1 | W2: Deadlift 2 | X2: Deadlift 3 | Y2: Deadlift 4 | Z2: Best Deadlift | AB2: Coeff Score | AC2: Age & Coeff | AD2: Place code | AF2: Pl-Div-WtCl | AG2: Team Pts | AH2: Event check | AI2: sort # | AJ2: lbs/kg | AN2: scoring value | AO2: rank | AP2: -1 | CA2: 34 | CB2: 34 | CC2: 33 | CD2: 31 | CF2: status | CG2: Squat 1 | CH2: Squat 2 | CI2: Squat 3 | CJ2: Squat 4 | CK2: Best Squat | CL2: RH BP | CM2: Bench 1 | CN2: Bench 2 | CO2: Bench 3 | CP2: Bench 4 | CQ2: Best Bench | CR2: Sub Total | CS2: Deadlift 1 | CT2: Deadlift 2 | CU2: Deadlift 3 | CV2: Deadlift 4 | CW2: Best Deadlift
B3: Nora Langdon | D3: F_MR_7_AAPF | E3: 90 | P3: 72.5 | Q3: 82.5 | R3: 92.5 | T3: 92.5 | AB3: 134.694 | AC3: 0 | AD3: 1 | AE3: 1- | AF3: F_OR_AAPF | AG3: 3
B4: Amy Lindsey | D4: F_MR_2_AAPF | E4: 82.5 | P4: 52.5 | Q4: 57.5 | R4: 62.5 | T4: 62.5 | AB4: 106.5015 | AC4: 0 | AD4: 1 | AE4: 1- | AF4: F_OR_AAPF | AG4: 3
B5: Jill Jansen | D5: F_MR_2_AAPF | E5: 67.5 | P5: 60 | Q5: -62.5 | R5: -62.5 | T5: 60 | AB5: 117.5005 | AC5: 0 | AD5: 1 | AE5: 2- | AF5: F_OR_AAPF | AG5: 3
B6: Kitty Wood | D6: F_MR_2_AAPF | E6: 56 | P6: 37.5 | Q6: 40 | R6: 42.5 | T6: 42.5 | AB6: 99.4555 | AC6: 0 | AD6: 1 | AE6: 3- | AF6: F_OR_AAPF | AG6: 3
B7: Renee Laffitte | D7: F_MR_1_APF | E7: 90 | P7: 60 | Q7: 70 | R7: 77.5 | T7: 77.5 | AB7: 127.211 | AC7: 0 | AD7: 1 | AE7: 1- | AF7: F_OR_APF | AG7: 3
B8: Kayla Richie | D8: F_SR_AAPF | E8: 82.5 | P8: 87.5 | Q8: -95 | R8: 95 | T8: 95 | AB8: 165.669 | AC8: 0 | AD8: 1 | AE8: 1- | AF8: F_OR_APF | AG8: 3
B9: Chloe Darnell | D9: F_OR_AAPF | E9: 90 | P9: -52.5 | Q9: 55 | R9: 60 | T9: 60 | AB9: 97.279 | AC9: 0 | AD9: 1 | AE9: 1- | AF9: F_OR_APF | AG9: 3
B10: Kelli Holschuh | D10: F_OR_AAPF | E10: 75 | P10: 57.5 | Q10: -65 | R10: -65 | T10: 567.5 | AB10: 104.7 | AC10: 0 | AD10: 1 | AE10: 2- | AF10: M_MES_5_AAPF | AG10: 3
B11: Jenna Wandtke | D11: F_OR_AAPF | E11: 90 | P11: 52.5 | Q11: -57.5 | R11: 57.5 | T11: 57.5 | AB11: 93.5375 | AC11: 0 | AD11: 1 | AE11: 3- | AF11: M_MR_5_APF | AG11: 3
B12: Keali Heileman | D12: F_OR_AAPF | E12: 82.5 | P12: 50 | Q12: 55 | R12: -60 | T12: 55 | AB12: 94.668 | AC12: 0 | AD12: 1 | AE12: 4- | AF12: M_MR_4_AAPF | AG12: 3
B13: Amanda Barr | D13: F_OR_AAPF | E13: 75 | P13: 47.5 | Q13: 50 | R13: 52.5 | T13: 52.5 | U13: Women | AB13: 97.9225 | AC13: 0 | AD13: 1 | AE13: 5- | AF13: M_MR_4_APF | AG13: 3
B14: Christine Steinmetz | D14: F_OR_AAPF | E14: 82.5 | P14: 47.5 | Q14: -50 | R14: -50 | T14: 47.5 | U14: 44 | AB14: 82.8345 | AC14: 0 | AD14: 1 | AE14: 6- | AF14: M_MR_3_AAPF | AG14: 3
B15: Brianna Maisen | D15: F_OR_AAPF | E15: 56 | P15: 40 | Q15: 42.5 | R15: -45 | T15: 42.5 | U15: 48 | AB15: 94.221 | AC15: 0 | AD15: 1 | AE15: 7- | AF15: M_MR_3_AAPF | AG15: 3
B16: Johanna Heslop | D16: F_OR_APF | E16: 75 | P16: 55 | Q16: 60 | R16: -65 | T16: 60 | U16: 52 | AB16: 113.076 | AC16: 0 | AD16: 1 | AE16: 1- | AF16: M_MR_2_AAPF | AG16: 3
B17: Lori Fowler | D17: F_OR_APF | E17: 67.5 | P17: 37.5 | Q17: 40 | R17: 45 | T17: 45 | U17: 56 | AB17: 90.385 | AC17: 0 | AD17: 1 | AE17: 2- | AF17: M_MEM_1_APF | AG17: 3
B18: Katherine Rothley | D18: F_OR_APF | E18: 75 | P18: 42.5 | Q18: 45 | R18: ---- | T18: 45 | U18: 60 | AB18: 79.57 | AC18: 0 | AD18: 1 | AE18: 3- | AF18: M_MEM_1_APF | AG18: 3
B19: Jim Wetenhall | D19: M_MES_5_AAPF | E19: 140 | P19: 157.5 | Q19: 167.5 | R19: 170 | T19: 170 | U19: 67.5 | AB19: 199.25625 | AC19: 0 | AD19: 1 | AE19: 1- | AF19: M_MR_1_AAPF | AG19: 3
B20: Jim Harris | D20: M_MR_5_APF | E20: 75 | P20: 127.5 | Q20: 137.5 | R20: -140 | T20: 137.5 | U20: 75 | AB20: 206.97 | AC20: 0 | AD20: 1 | AE20: 1- | AF20: M_MR_1_APF | AG20: 3
B21: Jeffery Ellis | D21: M_MR_4_AAPF | E21: 90 | P21: 125 | Q21: 132.5 | R21: -135 | T21: 132.5 | U21: 82.5 | AB21: 177.654 | AC21: 0 | AD21: 1 | AE21: 1- | AF21: M_SR_AAPF | AG21: 3
B22: Wally Stamper | D22: M_MR_4_APF | E22: 125 | P22: 175 | Q22: 185 | R22: -190 | T22: 185 | U22: 90 | AB22: 221.02875 | AC22: 0 | AD22: 1 | AE22: 1- | AF22: M_SR_AAPF | AG22: 3
B23: Anthony Boston | D23: M_MR_3_AAPF | E23: 110 | P23: 215 | Q23: 227.5 | R23: --- | T23: 227.5 | U23: SHW | AB23: 281.3 | AC23: 0 | AD23: 1 | AE23: 1- | AF23: M_SR_APF | AG23: 3
B24: Anthony Albo | D24: M_MR_3_AAPF | E24: 110 | P24: 185 | Q24: 190 | R24: 192.5 | T24: 192.5 | AB24: 239.16875 | AC24: 0 | AD24: 1 | AE24: 1- | AF24: M_JR_AAPF | AG24: 3
B25: Ken Dilg | D25: M_MR_2_AAPF | E25: 90 | P25: 132.5 | Q25: 140 | R25: 145 | T25: 145 | AB25: 196.032 | AC25: 0 | AD25: 1 | AE25: 1- | AF25: M_TR_3_AAPF | AG25: 3
B26: Patrick Mitchell | D26: M_MEM_1_APF | E26: 125 | P26: -210 | Q26: -210 | R26: -210 | T26: 0 | AB26: 0 | AC26: 0 | AD26: 1 | AE26: 0 | AF26: M_TR_2_AAPF | AG26: 0
B27: Matthew Ogurek | D27: M_MEM_1_APF | E27: 110 | P27: 227.5 | Q27: 242.5 | R27: 255 | T27: 255 | AB27: 315.14 | AC27: 0 | AD27: 1 | AE27: 1- | AF27: M_TR_2_AAPF | AG27: 3
B28: Chris Lindsey | D28: M_MR_1_AAPF | E28: 60 | P28: 82.5 | Q28: 90 | R28: 95 | T28: 95 | AB28: 164.073 | AC28: 0 | AD28: 1 | AE28: 1- | AF28: M_TR_2_AAPF | AG28: 3
B29: Lary Brendel | D29: M_MR_1_APF | E29: 125 | P29: 217.5 | Q29: 227.5 | R29: -235 | T29: 227.5 | AB29: 272.875 | AC29: 0 | AD29: 1 | AE29: 1- | AF29: M_OEM_APF | AG29: 3
B30: Brian Rausch | D30: M_SR_AAPF | E30: 140 | P30: 177.5 | Q30: 187.5 | R30: 192.5 | T30: 192.5 | AB30: 223.167 | AC30: 0 | AD30: 1 | AE30: 1- | AF30: M_OR_AAPF | AG30: 3
B31: Edward King | D31: M_SR_AAPF | E31: 140 | P31: 170 | Q31: -185 | R31: -185 | T31: 170 | AB31: 199.25625 | AC31: 0 | AD31: 1 | AE31: 2- | AF31: M_OR_AAPF | AG31: 3
B32: Mark Havens | D32: M_SR_APF | E32: 125 | P32: 185 | Q32: -192.5 | R32: -192.5 | T32: 185 | AB32: 226.56 | AC32: 0 | AD32: 1 | AE32: 1- | AF32: M_OR_AAPF | AG32: 3
B33: Joshua Albo | D33: M_JR_AAPF | E33: 110 | P33: 185 | Q33: 190 | R33: -195 | T33: 190 | AB33: 233.54125 | AC33: 0 | AD33: 1 | AE33: 1- | AF33: M_OR_AAPF | AG33: 3
B34: Xiaver Collier | D34: M_TR_3_AAPF | E34: 90 | P34: 125 | Q34: 140 | R34: -147.5 | T34: 140 | AB34: 186.843 | AC34: 0 | AD34: 1 | AE34: 1- | AF34: M_OR_AAPF | AG34: 3
B35: Jered Moreland | D35: M_TR_2_AAPF | E35: 125 | P35: 150 | Q35: -157.5 | R35: 157.5 | T35: 157.5 | AB35: 188.28375 | AC35: 0 | AD35: 1 | AE35: 1- | AF35: M_OR_AAPF | AG35: 3
B36: Ryan Abramowicz | D36: M_TR_2_AAPF | E36: 82.5 | P36: 75 | Q36: 80 | R36: -92.5 | T36: 80 | AB36: 113.16375 | AC36: 0 | AD36: 1 | AE36: 2- | AF36: M_OR_AAPF | AG36: 3
B37: Robert Abramowicz | D37: M_TR_2_AAPF | E37: 82.5 | P37: 62.5 | Q37: 67.5 | R37: 72.5 | T37: 72.5 | AB37: 100.23075 | AC37: 0 | AD37: 1 | AE37: 3- | AF37: M_OR_AAPF | AG37: 3
B38: Joseph Fargo | D38: M_OEM_APF | E38: 90 | P38: -280 | Q38: -280 | R38: -280 | T38: 0 | AB38: 0 | AC38: 0 | AD38: 1 | AE38: 0 | AF38: M_OR_AAPF | AG38: 0
B39: Carlos Kendal Jr | D39: M_OR_AAPF | E39: 125 | P39: 185 | Q39: 207.5 | R39: -220 | T39: 207.5 | AB39: 248.31625 | AC39: 0 | AD39: 1 | AE39: 1- | AF39: M_OR_AAPF | AG39: 3
B40: Steven Huges | D40: M_OR_AAPF | E40: 125 | P40: 167.5 | Q40: 185 | R40: -190 | T40: 185 | AB40: 221.02875 | AC40: 0 | AD40: 1 | AE40: 2- | AF40: M_OR_AAPF | AG40: 3
B41: Marlin Outley | D41: M_OR_AAPF | E41: 110 | P41: 160 | Q41: 165 | R41: 172.5 | T41: 172.5 | AB41: 211.03125 | AC41: 0 | AD41: 1 | AE41: 3- | AF41: M_OR_AAPF | AG41: 3
B42: Kelvin Shaw | D42: M_OR_AAPF | E42: 125 | P42: 157.5 | Q42: 162.5 | R42: 172.5 | T42: 172.5 | AB42: 204.2175 | AC42: 0 | AD42: 1 | AE42: 4- | AF42: M_OR_AAPF | AG42: 3
B43: Anthony Celini | D43: M_OR_AAPF | E43: 75 | P43: 135 | Q43: 145 | R43: 150 | T43: 150 | AB43: 224.2175 | AC43: 0 | AD43: 1 | AE43: 5- | AF43: M_OR_APF | AG43: 3
B44: Teddie Williams | D44: M_OR_AAPF | E44: 100 | P44: 140 | Q44: 147.5 | R44: -155 | T44: 147.5 | AB44: 186.176 | AC44: 0 | AD44: 1 | AE44: 6- | AF44: M_OR_APF | AG44: 3
B45: Alan Mems II | D45: M_OR_AAPF | E45: 82.5 | P45: 127.5 | Q45: 142.5 | R45: -147.5 | T45: 142.5 | AB45: 200.4615 | AC45: 0 | AD45: 1 | AE45: 7- | AF45: M_OR_APF | AG45: 3
B46: Joseph Parus | D46: M_OR_AAPF | E46: 90 | P46: 120 | Q46: 127.5 | R46: 147.5 | T46: 147.5 | AB46: 183.78 | AC46: 0 | AD46: 1 | AE46: 8- | AF46: M_OR_AAPF | AG46: 3
B47: Max Aidenbaum | D47: M_OR_AAPF | E47: 75 | P47: 115 | Q47: 120 | R47: 122.5 | T47: 122.5 | AB47: 186.273 | AC47: 0 | AD47: 1 | AE47: 9- | AF47: M_OR_AAPF | AG47: 3
B48: Bryan Peregord | D48: M_OR_AAPF | E48: 110 | P48: 102.5 | Q48: 112.5 | R48: 120 | T48: 120 | AB48: 146.315 | AC48: 0 | AD48: 1 | AE48: 10- | AF48: M_OR_AAPF | AG48: 3
B49: John Maison | D49: M_OR_AAPF | E49: 75 | P49: 100 | Q49: 107.5 | R49: -115 | T49: 107.5 | AB49: 162.1265 | AC49: 0 | AD49: 1 | AE49: 11- | AF49: M_OR_AAPF | AG49: 3
B50: Patrick Linton | D50: M_OR_AAPF | E50: 82.5 | P50: 97.5 | Q50: -100 | R50: -100 | T50: 97.5 | AB50: 142.9155 | AC50: 0 | AD50: 1 | AE50: 12- | AF50: M_OR_AAPF | AG50: 3
B51: John Karns | D51: M_OR_AAPF | E51: 75 | P51: -92.5 | Q51: -92.5 | R51: -92.5 | T51: 0 | AB51: 0 | AC51: 0 | AD51: 1 | AE51: 0 | AF51: M_OR_AAPF | AG51: 0
B52: John Fricke | D52: M_OR_APF | E52: 140 | P52: 152.5 | Q52: 162.5 | R52: -192.5 | T52: 162.5 | AB52: 188.62925 | AC52: 0 | AD52: 1 | AE52: 1- | AF52: M_OR_APF | AG52: 3
B53: Jordan Barr | D53: M_OR_APF | E53: 125 | P53: 137.5 | Q53: 147.5 | R53: -160 | T53: 147.5 | AB53: 174.16 | AC53: 0 | AD53: 1 | AE53: 2- | AF53: M_OR_APF | AG53: 3
B54: Michael Hamilton | D54: M_OR_APF | E54: 110 | P54: -140 | Q54: -140 | R54: -140 | T54: 0 | AB54: 0 | AC54: 0 | AD54: 1 | AE54: 0 | AF54: M_OR_APF | AG54: 0

Sheet Loading Chart (hidden)
A1: Kilos | B1: Pounds
A2: 32.5 | B2: =CONVERT(A2*1000, "g", "lbm") -> 71.65023521
A3: 35 | B3: =CONVERT(A3*1000, "g", "lbm") -> 77.16179176
A4: 37.5 | B4: 82.67334832
A5: 40 | B5: 88.18490487
A6: 42.5 | B6: 93.69646143
A7: 45 | B7: 99.20801798
A8: 47.5 | B8: 104.7195745
A9: 50 | B9: 110.2311311
A10: 52.5 | B10: 115.7426876
A11: 55 | B11: 121.2542442
A12: 57.5 | B12: 126.7658008
A13: 60 | B13: 132.2773573
A14: 62.5 | B14: 137.7889139
A15: 65 | B15: 143.3004704
A16: 67.5 | B16: 148.812027
A17: 70 | B17: 154.3235835
A18: 72.5 | B18: 159.8351401
A19: 75 | B19: 165.3466966
A20: 77.5 | B20: 170.8582532
A21: 80 | B21: 176.3698097
A22: 82.5 | B22: 181.8813663
A23: 85 | B23: 187.3929229
A24: 87.5 | B24: 192.9044794
A25: 90 | B25: 198.416036
A26: 92.5 | B26: 203.9275925
A27: 95 | B27: 209.4391491
A28: 97.5 | B28: 214.9507056
A29: 100 | B29: 220.4622622
A30: 102.5 | B30: 225.9738187
A31: 105 | B31: 231.4853753
A32: 107.5 | B32: 236.9969318
A33: 110 | B33: 242.5084884
A34: 112.5 | B34: 248.020045
A35: 115 | B35: 253.5316015
A36: 117.5 | B36: 259.0431581
A37: 120 | B37: 264.5547146
A38: 122.5 | B38: 270.0662712
A39: 125 | B39: 275.5778277
A40: 127.5 | B40: 281.0893843
A41: 130 | B41: 286.6009408
A42: 132.5 | B42: 292.1124974
A43: 135 | B43: 297.6240539
A44: 137.5 | B44: 303.1356105
A45: 140 | B45: 308.6471671
A46: 142.5 | B46: 314.1587236
A47: 145 | B47: 319.6702802
A48: 147.5 | B48: 325.1818367
A49: 150 | B49: 330.6933933
A50: 152.5 | B50: 336.2049498
A51: 155 | B51: 341.7165064
A52: 157.5 | B52: 347.2280629
A53: 160 | B53: 352.7396195
A54: 162.5 | B54: 358.2511761
A55: 165 | B55: 363.7627326
A56: 167.5 | B56: 369.2742892
A57: 170 | B57: 374.7858457
A58: 172.5 | B58: 380.2974023
A59: 175 | B59: 385.8089588
A60: 177.5 | B60: 391.3205154
A61: 180 | B61: 396.8320719
A62: 182.5 | B62: 402.3436285
A63: 185 | B63: 407.855185
A64: 187.5 | B64: 413.3667416
A65: 190 | B65: 418.8782982
A66: 192.5 | B66: 424.3898547
A67: 195 | B67: =CONVERT(A67*1000, "g", "lbm") -> 429.9014113
A68: 197.5 | B68: 435.4129678
A69: 200 | B69: 440.9245244
A70: 202.5 | B70: 446.4360809
A71: 205 | B71: 451.9476375
A72: 207.5 | B72: 457.459194
A73: 210 | B73: 462.9707506
A74: 212.5 | B74: 468.4823071
A75: 215 | B75: 473.9938637
A76: 217.5 | B76: 479.5054203
A77: 220 | B77: 485.0169768
A78: 222.5 | B78: 490.5285334
A79: 225 | B79: 496.0400899
A80: 227.5 | B80: 501.5516465
A81: 230 | B81: 507.063203
A82: 232.5 | B82: 512.5747596
A83: 235 | B83: 518.0863161
A84: 237.5 | B84: 523.5978727
A85: 240 | B85: 529.1094292
A86: 242.5 | B86: 534.6209858
A87: 245 | B87: 540.1325424
A88: 247.5 | B88: 545.6440989
A89: 250 | B89: 551.1556555
A90: 252.5 | B90: 556.667212
A91: 255 | B91: 562.1787686
A92: 257.5 | B92: 567.6903251
A93: 260 | B93: 573.2018817
A94: 262.5 | B94: 578.7134382
A95: 265 | B95: 584.2249948
A96: 267.5 | B96: 589.7365513
A97: 270 | B97: 595.2481079
A98: 272.5 | B98: 600.7596645
A99: 275 | B99: 606.271221
A100: 277.5 | B100: 611.7827776
A101: 280 | B101: 617.2943341
A102: 282.5 | B102: 622.8058907
A103: 285 | B103: 628.3174472
A104: 287.5 | B104: 633.8290038
A105: 290 | B105: 639.3405603
A106: 292.5 | B106: 644.8521169
A107: 295 | B107: 650.3636734
A108: 297.5 | B108: 655.87523
A109: 300 | B109: 661.3867866
A110: 302.5 | B110: 666.8983431
A111: 305 | B111: 672.4098997
A112: 307.5 | B112: 677.9214562
A113: 310 | B113: 683.4330128
A114: 312.5 | B114: 688.9445693
A115: 315 | B115: 694.4561259
A116: 317.5 | B116: 699.9676824
A117: 320 | B117: 705.479239
A118: 322.5 | B118: 710.9907955
A119: 325 | B119: 716.5023521
A120: 327.5 | B120: 722.0139087
A121: 330 | B121: 727.5254652
A122: 332.5 | B122: 733.0370218
A123: 335 | B123: 738.5485783
A124: 337.5 | B124: 744.0601349
A125: 340 | B125: 749.5716914
A126: 342.5 | B126: 755.083248
A127: 345 | B127: 760.5948045
A128: 347.5 | B128: 766.1063611
A129: 350 | B129: 771.6179176
A130: 352.5 | B130: 777.1294742
A131: 355 | B131: =CONVERT(A131*1000, "g", "lbm") -> 782.6410308
A132: 357.5 | B132: 788.1525873
A133: 360 | B133: 793.6641439
A134: 362.5 | B134: 799.1757004
A135: 365 | B135: 804.687257
A136: 367.5 | B136: 810.1988135
A137: 370 | B137: 815.7103701
A138: 372.5 | B138: 821.2219266
A139: 375 | B139: 826.7334832
A140: 377.5 | B140: 832.2450397
A141: 380 | B141: 837.7565963
A142: 382.5 | B142: 843.2681529
A143: 385 | B143: 848.7797094
A144: 387.5 | B144: 854.291266
A145: 390 | B145: 859.8028225
A146: 392.5 | B146: 865.3143791
A147: 395 | B147: 870.8259356
A148: 397.5 | B148: 876.3374922
A149: 400 | B149: 881.8490487
A150: 402.5 | B150: 887.3606053
A151: 405 | B151: 892.8721618
A152: 407.5 | B152: 898.3837184
A153: 410 | B153: 903.895275
A154: 412.5 | B154: 909.4068315
A155: 415 | B155: 914.9183881
A156: 417.5 | B156: 920.4299446
A157: 420 | B157: 925.9415012
A158: 422.5 | B158: 931.4530577
A159: 425 | B159: 936.9646143
A160: 427.5 | B160: 942.4761708
A161: 430 | B161: 947.9877274
A162: 432.5 | B162: 953.4992839
A163: 435 | B163: 959.0108405
A164: 437.5 | B164: 964.5223971
A165: 440 | B165: 970.0339536
A166: 442.5 | B166: 975.5455102
A167: 445 | B167: 981.0570667
A168: 447.5 | B168: 986.5686233
A169: 450 | B169: 992.0801798
A170: 452.5 | B170: 997.5917364
A171: 455 | B171: 1003.103293
A172: 457.5 | B172: 1008.614849
A173: 460 | B173: 1014.126406
A174: 462.5 | B174: 1019.637963
A175: 465 | B175: 1025.149519
A176: 467.5 | B176: 1030.661076
A177: 470 | B177: 1036.172632
A178: 472.5 | B178: 1041.684189
A179: 475 | B179: 1047.195745
A180: 477.5 | B180: 1052.707302
A181: 480 | B181: 1058.218858
A182: 482.5 | B182: 1063.730415
A183: 485 | B183: 1069.241972
A184: 487.5 | B184: 1074.753528
A185: 490 | B185: 1080.265085
A186: 492.5 | B186: 1085.776641
A187: 495 | B187: 1091.288198
A188: 497.5 | B188: 1096.799754
A189: 500 | B189: 1102.311311
A190: 502.5 | B190: 1107.822867
A191: 505 | B191: 1113.334424
A192: 507.5 | B192: 1118.845981
A193: 510 | B193: 1124.357537
A194: 512.5 | B194: 1129.869094
A195: 515 | B195: =CONVERT(A195*1000, "g", "lbm") -> 1135.38065
A196: 517.5 | B196: 1140.892207
A197: 520 | B197: 1146.403763
A198: 522.5 | B198: 1151.91532
A199: 525 | B199: 1157.426876
A200: 527.5 | B200: 1162.938433
... 58 more rows

Sheet Lifting
A1: =COUNTIF(INDIRECT(AG1),RIGHT(B8,1)) -> 0 | B1: Sort-on | F1: Div | H1: Wt Cls | J1: =IF(ISERROR(A2),1,0) -> 1 | K1: 0 | AG1: =CONCATENATE("$b$9:$b$",$AF$7) -> $b$9:$b$26 | AI1: =CONCATENATE("Setup!O7:O",COUNTA(Setup!O:O)+4) -> Setup!O7:O247 | AZ1: PL Total | BA1: =VLOOKUP($AZ$1,$AZ$2:$BM$6,2,FALSE) -> $BB$1:$BM$1 | BB1: =VLOOKUP($AZ$1,$AZ$2:$BM$6,3,FALSE) -> Squat 1 | BC1: =VLOOKUP($AZ$1,$AZ$2:$BM$6,4,FALSE) -> Squat 2 | BD1: =VLOOKUP($AZ$1,$AZ$2:$BM$6,5,FALSE) -> Squat 3 | BE1: =VLOOKUP($AZ$1,$AZ$2:$BM$6,6,FALSE) -> Squat 4 | BF1: =VLOOKUP($AZ$1,$AZ$2:$BM$6,7,FALSE) -> Bench 1 | BG1: =VLOOKUP($AZ$1,$AZ$2:$BM$6,8,FALSE) -> Bench 2 | BH1: =VLOOKUP($AZ$1,$AZ$2:$BM$6,9,FALSE) -> Bench 3 | BI1: =VLOOKUP($AZ$1,$AZ$2:$BM$6,10,FALSE) -> Bench 4 | BJ1: =VLOOKUP($AZ$1,$AZ$2:$BM$6,11,FALSE) -> Deadlift 1 | BK1: =VLOOKUP($AZ$1,$AZ$2:$BM$6,12,FALSE) -> Deadlift 2 | BL1: =VLOOKUP($AZ$1,$AZ$2:$BM$6,13,FALSE) -> Deadlift 3 | BM1: =VLOOKUP($AZ$1,$AZ$2:$BM$6,14,FALSE) -> Deadlift 4 | BP1: A | BQ1: =IF(BP1=RIGHT($B$8,1),0,BQ8+1) -> 0
A2: =CONCATENATE(CHOOSE(MATCH(B3,K8:Z8,0),"K","L","M","N","O","P","Q","R","S","T","U","V","W","X","Y","Z"),MATCH(B2,INDIRECT(A7),0)+9,) ->  | B2: Fogg, Abby | F2: =INDIRECT(CONCATENATE("E",A4)) ->  | H2: =IF(INDIRECT(CONCATENATE("G",A4))="SHW","SHW",ROUND(INDIRECT(CONCATENATE("G",A4)),1)) ->  | I2: =IF(H2="SHW","",IF(G8="WtCls (Kg)","Kg","Lb")) ->  | J2: 51778.12109 | AZ2: Best Bench | BA2: $BB$1:$BE$1 | BB2: Bench 1 | BC2: Bench 2 | BD2: Bench 3 | BE2: Bench 4 | BP2: B | BQ2: =IF(BP2=RIGHT($B$8,1),0,BQ1+1) -> 1
A3: =MATCH(B3,K8:Z8,0)+10 -> 23 | B3: Deadlift 1 | D3: =INDIRECT(A2) ->  | G3: =Setup!H4 -> Kg | H3: =ABS(D3) ->  | I3: =-1*H3 ->  | J3: 4 | AZ3: Best Deadlift | BA3: $BB$1:$BE$1 | BB3: Deadlift 1 | BC3: Deadlift 2 | BD3: Deadlift 3 | BE3: Deadlift 4 | BP3: C | BQ3: =IF(BP3=RIGHT($B$8,1),0,BQ2+1) -> 2
A4: =MATCH(B2,INDIRECT(A7),0)+9 ->  | B4: =IF(LEFT(B3,1)="D","",CONCATENATE("Rack - ",IF(LEFT(B3,2)=" S",INDIRECT(CONCATENATE("J",A4)),INDIRECT(CONCATENATE("P",A4))))) ->  | D4: =IF(G4="Lb",2.2046*D3,D3/2.2046) ->  | G4: =IF(G3="Kg","Lb","Kg") -> Lb | H4: K13 | J4: 63.83 | AZ4: Best Squat | BA4: $BB$1:$BE$1 | BB4: Squat 1 | BC4: Squat 2 | BD4: Squat 3 | BE4: Squat 4 | BP4: D | BQ4: 3
A5: =CONCATENATE(IF(AND($A$3>10,$A$3<15),"O",IF(AND($A$3>16,$A$3<21),"U","AA")),$A$4) ->  | F5: automatic | J5: 00:06:55 | AZ5: PL Total | BA5: $BB$1:$BM$1 | BB5: Squat 1 | BC5: Squat 2 | BD5: Squat 3 | BE5: Squat 4 | BF5: Bench 1 | BG5: Bench 2 | BH5: Bench 3 | BI5: Bench 4 | BJ5: Deadlift 1 | BK5: Deadlift 2 | BL5: Deadlift 3 | BM5: Deadlift 4 | BP5: E | BQ5: 4
A6: =CONCATENATE(IF(AND($A$3>10,$A$3<15),"O",IF(AND($A$3>16,$A$3<21),"U","AA")),1) -> AA1 | AF6: =A1+10 -> 10 | AZ6: Push Pull Total | BA6: $BB$1:$BI$1 | BB6: Bench 1 | BC6: Bench 2 | BD6: Bench 3 | BE6: Bench 4 | BF6: Deadlift 1 | BG6: Deadlift 2 | BH6: Deadlift 3 | BI6: Deadlift 4 | BP6: F | BQ6: 5
A7: =CONCATENATE("$C$10:$C$",A1+9) -> $C$10:$C$9 | AF7: 26 | AG7: =CONCATENATE("$AG$9:$AG$",$AF$7) -> $AG$9:$AG$26 | AJ7: =IF($AB$8="PL Total","PL",IF($AB$8="Push Pull Total","PP",IF($AB$8="Best Squat","SQ",IF($AB$8="Best Bench","BP","DL")))) -> PL | AS7: =CONCATENATE("AR10:AR",AF7) -> AR10:AR26 | AU7: =CONCATENATE("AT10:AT",AF7) -> AT10:AT26 | BP7: G | BQ7: 6
A8: Sort data | B8: Flt A | C8: Name | D8: Age | E8: Div | F8: =Setup!K6 -> BWt (Kg) | G8: =IF(F8="BWt (Kg)","WtCls (Kg)","WtCls (Lb)") -> WtCls (Kg) | H8: =Setup!K30 -> Glossbrenner | I8: Lot # | J8: RH Sq | K8: Squat 1 | L8: Squat 2 | M8: Squat 3 | N8: Squat 4 | O8: Best Squat | P8: RH BP | Q8: Bench 1 | R8: Bench 2 | S8: Bench 3 | T8: Bench 4 | U8: Best Bench | V8: Sub Total | W8: Deadlift 1 | X8: Deadlift 2 | Y8: Deadlift 3 | Z8: Deadlift 4 | AA8: Best Deadlift | AB8: PL Total | AC8: Coeff Score | AD8: Age & Coeff | AE8: Pl code | AF8: Pl-Div-WtCl | AG8: Tm Pts | AH8: Team | AI8: Events | AJ8: Event check | AK8: sort # | AL8: lbs/kg | AM8: PL Total | AN8: Push Pull Total | AO8: M/F | AQ8: valid score? | AR8: scoring value | AS8: rank | AT8: Div wt | AU8: Div rank | AV8: place | AW8: bwt | AX8: bwt rank | AY8: abs score | BP8: H | BQ8: 7 | CJ8: status | CK8: Squat 1 | CL8: Squat 2 | CM8: Squat 3 | CN8: Squat 4 | CO8: Best Squat | CP8: RH BP | CQ8: Bench 1 | CR8: Bench 2 | CS8: Bench 3 | CT8: Bench 4 | CU8: Best Bench | CV8: Sub Total | CW8: Deadlift 1 | CX8: Deadlift 2 | CY8: Deadlift 3 | CZ8: Deadlift 4 | DA8: Best Deadlift
A9: =IF(K9,ABS(K9)+0.0001*I9,"") ->  | G9: =IF(OR(E9="",F9=""),"",IF(LEFT(E9,1)="M",VLOOKUP(F9,Setup!$J$9:$K$23,2,TRUE),VLOOKUP(F9,Setup!$L$9:$M$23,2,TRUE))) ->  | H9: =IF(F9="",0,VLOOKUP(AL9,DATA!$L$2:$N$1910,IF(LEFT(E9,1)="F",3,2))) -> 0 | O9: =IF(MAX(CK9:CM9)>0,MAX(ABS(K9)*CK9,ABS(L9)*CL9,CM9*ABS(M9)),0) -> 0 | U9: =IF(MAX(CQ9:CS9)>0,MAX(ABS(Q9)*CQ9,ABS(R9)*CR9,CS9*ABS(S9)),0) -> 0 | V9: =IF(OR(O9=0,U9=0),0,O9+U9) -> 0 | AA9: =IF(MAX(CW9:CY9)>0,MAX(ABS(W9)*CW9,ABS(X9)*CX9,CY9*ABS(Y9)),0) -> 0 | AB9: =AJ9*IF($AB$8="PL Total",AM9,IF($AB$8="Push Pull Total",AN9,IF($AB$8="Best Squat",O9,IF($AB$8="Best Bench",U9,AA9)))) -> 0 | AC9: =IF(OR(F9="",AB9=0),0,H9*IF(AND($G$3="Lb",$H$8="Wilks"),AB9/2.2046,AB9)) -> 0 | AD9: =IF(OR(AB9=0,D9="",D9<40),0,VLOOKUP($D9,DATA!$A$2:$B$53,2,TRUE)*AC9) -> 0 | AE9: =IF(E9="","",OFFSET(Setup!$Q$1,MATCH(E9,Setup!O:O,0)-1,0)) ->  | AF9: =IF(OR(AB9=0,AR9=0),0,CONCATENATE(AV9,"-",E9,IF(AE9=1,"-",""),IF(AE9=1,IF(G9="SHW",G9,ROUND(G9,1)),""))) -> 0 | AG9: =IF(OR(AB9=0),0,VLOOKUP(AV9,Setup!$S$6:$T$15,2,TRUE)) -> 0 | AJ9: =IF(ISERROR(FIND($AJ$7,AI9)),0,1) -> 0 | AK9: =IF(B9="","",VLOOKUP(B9,$BP$1:$BQ$8,2,FALSE)) ->  | AL9: =ROUND(IF($F$8="BWt (Kg)",F9,F9/2.2046),1) -> 0 | AM9: =IF(OR(O9=0,U9=0,AA9=0),0,O9+U9+AA9) -> 0 | AN9: =IF(OR(U9=0,AA9=0),0,U9+AA9) -> 0 | AO9: =IF(E9="","",LEFT(E9,1)) ->  | AQ9: =IF(OR(ISERROR(E9),F9="",ISERROR(G9),AB9=0),0,1) -> 0 | AR9: =IF(OR(ISERROR(AY9),ISERROR(AX9)),0,AY9) -> 0 | AS9: =RANK(AR9,INDIRECT($AS$7)) ->  | AT9: =INT(AR9/1000000) -> 0 | AU9: =RANK(AT9,INDIRECT($AU$7)) ->  | AV9: =AS9-AU9+1 ->  | AW9: =F9 -> 0 | AX9: =RANK(AW9,AW:AW) -> 1 | AY9: =IF(OR(E9="",F9="",ISERROR(AE9)),0,(100000000*MATCH(E9,INDIRECT($AI$1),0)+IF(AE9=1,(16-IF(AO9="M",MATCH(G9,Setup!$K$9:$K$23,0),MATCH(G9,Setup!$M$9:$M$23)))*1000000,0)+IF(AB9>0,IF(AE9=1,RANK(AB9,AB:AB,-1)*1000+AX9,IF(AE9=2,AC9,AD9)),0))) -> 0 | CJ9: 0 | CK9: 0 | CL9: 0 | CM9: 0 | CN9: 0 | CO9: 0 | CP9: 0 | CQ9: 0 | CR9: 0 | CS9: 0 | CT9: 0 | CU9: 0 | CV9: 0 | CW9: 0 | CX9: 0 | CY9: 0 | CZ9: 0

Sheet BarLoad
A1: =IF(RIGHT(Lifting!$B$2,1) = ")",MID(Lifting!$B$2,1,(SEARCH("(",Lifting!$B$2,1)-2)),Lifting!$B$2) -> Fogg, Abby
A3: =INDIRECT("Lifting!AH"&Lifting!A4) -> 
A4: =Lifting!B8 -> Flt A | C4: =Lifting!B3 -> Deadlift 1 | F4: Wt Cls: | H4: =Lifting!H2 ->  | L4: =Lifting!B4 -> 
L5: =CONCATENATE("#25 - ",Setup!H12) -> 
A6: =Lifting!D3 ->  | J6: =Lifting!G3 -> Kg
A16: =Lifting!D4 ->  | J16: =Lifting!G4 -> Lb

Sheet Upcoming Flights

Sheet 3-Lift

Sheet Squat

Sheet Bench

Sheet Deadlift

Sheet DATA (hidden)
A1: Age | B1: Coeff | E1: Copyright - Joe Marksteiner - 2005 | L1: KG | M1: Men's Coeff | N1: Women's Coeff | O1: Men Schwartz | P1: Women Malone | Q1: Men-Wilks | R1: Women Wilks | S1: Men G'brenner | T1: Women G'Brenner | U1: Men Reshel | V1: Women Reshel
A2: 14 | B2: 1.23 | C2: Foster Age Multiples | L2: 40 | M2: 1.32435 | N2: 1.3437 | O2: 1.3133 | P2: 1.1938 | Q2: 1.3354 | R2: 1.4936 | S2: 1.32435 | T2: 1.3437 | V2: 3.145
A3: 15 | B3: 1.18 | L3: 40.1 | M3: 1.32015 | N3: 1.3415 | O3: 1.3092 | P3: 1.1915 | Q3: 1.3311 | R3: 1.4915 | S3: 1.32015 | T3: 1.3415 | V3: 3.129
A4: 16 | B4: 1.13 | L4: 40.2 | M4: 1.316 | N4: 1.3393 | O4: 1.3052 | P4: 1.1892 | Q4: 1.3268 | R4: 1.4894 | S4: 1.316 | T4: 1.3393 | V4: 3.113
A5: 17 | B5: 1.08 | L5: 40.3 | M5: 1.3118 | N5: 1.337 | O5: 1.3011 | P5: 1.1869 | Q5: 1.3225 | R5: 1.4872 | S5: 1.3118 | T5: 1.337 | V5: 3.113
A6: 18 | B6: 1.06 | L6: 40.4 | M6: 1.30765 | N6: 1.3348 | O6: 1.2971 | P6: 1.1846 | Q6: 1.3182 | R6: 1.4851 | S6: 1.30765 | T6: 1.3348 | V6: 3.097
A7: 19 | B7: 1.04 | L7: 40.5 | M7: 1.30355 | N7: 1.3326 | O7: 1.2931 | P7: 1.1823 | Q7: 1.314 | R7: 1.483 | S7: 1.30355 | T7: 1.3326 | V7: 3.065
A8: 20 | B8: 1.03 | L8: 40.6 | M8: 1.29945 | N8: 1.3305 | O8: 1.2891 | P8: 1.181 | Q8: 1.3098 | R8: 1.4809 | S8: 1.29945 | T8: 1.3305 | V8: 3.049
A9: 21 | B9: 1.02 | L9: 40.7 | M9: 1.2954 | N9: 1.3283 | O9: 1.2851 | P9: 1.1778 | Q9: 1.3057 | R9: 1.4788 | S9: 1.2954 | T9: 1.3283 | V9: 3.033
A10: 22 | B10: 1.01 | L10: 40.8 | M10: 1.2914 | N10: 1.3261 | O10: 1.2812 | P10: 1.1756 | Q10: 1.3016 | R10: 1.4766 | S10: 1.2914 | T10: 1.3261 | V10: 3.033
A11: 23 | B11: 1 | L11: 41 | M11: 1.2834 | N11: 1.3217 | O11: 1.2734 | P11: 1.1732 | Q11: 1.2934 | R11: 1.4724 | S11: 1.2834 | T11: 1.3217 | V11: 3.017
A12: 30 | B12: 1 | E12: Weight Classes (Kg) | L12: 41.1 | M12: 1.27945 | N12: 1.3195 | O12: 1.2695 | P12: 1.1711 | Q12: 1.2894 | R12: 1.4702 | S12: 1.27945 | T12: 1.3195 | V12: 2.985
A13: 40 | B13: 1 | C13: McCulloch Numbers | E13: KG | F13: LB | G13: Upper limit (lbs) | L13: 41.2 | M13: 1.2755 | N13: 1.3174 | O13: 1.2656 | P13: 1.1689 | Q13: 1.2854 | R13: 1.4681 | S13: 1.2755 | T13: 1.3174 | V13: 2.971
A14: 41 | B14: 1.01 | E14: 44 | F14: 97 | G14: 97.0024 | L14: 41.3 | M14: 1.2716 | N14: 1.3152 | O14: 1.2618 | P14: 1.1667 | Q14: 1.2814 | R14: 1.466 | S14: 1.2716 | T14: 1.3152 | V14: 2.957
A15: 42 | B15: 1.02 | E15: 48 | F15: 105 | G15: 105.8208 | L15: 41.4 | M15: 1.26775 | N15: 1.313 | O15: 1.258 | P15: 1.1645 | Q15: 1.2775 | R15: 1.4638 | S15: 1.26775 | T15: 1.313 | V15: 2.957
A16: 43 | B16: 1.031 | E16: 52 | F16: 114 | G16: 114.6392 | L16: 41.5 | M16: 1.2639 | N16: 1.3109 | O16: 1.2542 | P16: 1.1623 | Q16: 1.2736 | R16: 1.4617 | S16: 1.2639 | T16: 1.3109 | V16: 2.943
A17: 44 | B17: 1.043 | E17: 56 | F17: 123 | G17: 123.4576 | L17: 41.6 | M17: 1.26005 | N17: 1.3087 | O17: 1.2504 | P17: 1.1601 | Q17: 1.2697 | R17: 1.4595 | S17: 1.26005 | T17: 1.3087 | V17: 2.915
A18: 45 | B18: 1.055 | E18: 60 | F18: 132 | G18: 132.276 | L18: 41.7 | M18: 1.25625 | N18: 1.3065 | O18: 1.2467 | P18: 1.1579 | Q18: 1.2658 | R18: 1.4574 | S18: 1.25625 | T18: 1.3065 | V18: 2.9018
A19: 46 | B19: 1.068 | E19: 67.5 | F19: 148 | G19: 148.8105 | L19: 41.8 | M19: 1.25245 | N19: 1.3043 | O19: 1.2429 | P19: 1.1557 | Q19: 1.262 | R19: 1.4552 | S19: 1.25245 | T19: 1.3043 | V19: 2.8886
A20: 47 | B20: 1.082 | E20: 75 | F20: 165 | G20: 165.345 | L20: 41.9 | M20: 1.26775 | N20: 1.3022 | O20: 1.2773 | P20: 1.1535 | Q20: 1.2582 | R20: 1.4531 | S20: 1.26775 | T20: 1.3022 | V20: 2.8886
A21: 48 | B21: 1.097 | E21: 82.5 | F21: 181 | G21: 181.8795 | L21: 42 | M21: 1.245 | N21: 1.3001 | O21: 1.2355 | P21: 1.1514 | Q21: 1.2545 | R21: 1.451 | S21: 1.245 | T21: 1.3001 | V21: 2.8754
A22: 49 | B22: 1.113 | E22: 90 | F22: 198 | G22: 198.414 | L22: 42.1 | M22: 1.24125 | N22: 1.2979 | O22: 1.2318 | P22: 1.1492 | Q22: 1.2507 | R22: 1.4488 | S22: 1.24125 | T22: 1.2979 | V22: 2.849
A23: 50 | B23: 1.13 | E23: 100 | F23: 220 | G23: 220.46 | L23: 42.2 | M23: 1.2376 | N23: 1.2958 | O23: 1.2282 | P23: 1.1471 | Q23: 1.247 | R23: 1.4467 | S23: 1.2376 | T23: 1.2958 | V23: 2.8362
A24: 51 | B24: 1.147 | E24: 110 | F24: 242 | G24: 242.506 | L24: 42.3 | M24: 1.2339 | N24: 1.2936 | O24: 1.2245 | P24: 1.145 | Q24: 1.2433 | R24: 1.4445 | S24: 1.2339 | T24: 1.2936 | V24: 2.8234
A25: 52 | B25: 1.165 | E25: 125 | F25: 275 | G25: 275.575 | L25: 42.4 | M25: 1.2303 | N25: 1.2915 | O25: 1.2209 | P25: 1.1428 | Q25: 1.2397 | R25: 1.4424 | S25: 1.2303 | T25: 1.2915 | V25: 2.8234
A26: 53 | B26: 1.184 | E26: 140 | F26: 308 | G26: 308.644 | L26: 42.5 | M26: 1.22665 | N26: 1.2894 | O26: 1.2173 | P26: 1.1407 | Q26: 1.236 | R26: 1.4402 | S26: 1.22665 | T26: 1.2894 | V26: 2.8108
A27: 54 | B27: 1.204 | E27: 145 | F27: 319 | G27: 319.667 | L27: 42.6 | M27: 1.2231 | N27: 1.2873 | O27: 1.2138 | P27: 1.1386 | Q27: 1.2324 | R27: 1.4381 | S27: 1.2231 | T27: 1.2873 | V27: 2.786
A28: 55 | B28: 1.225 | E28: SHW | F28: SHW | G28: ------ | L28: 42.7 | M28: 1.21955 | N28: 1.2851 | O28: 1.2102 | P28: 1.1365 | Q28: 1.2289 | R28: 1.4359 | S28: 1.21955 | T28: 1.2851 | V28: 2.7752
A29: 56 | B29: 1.246 | L29: 42.8 | M29: 1.216 | N29: 1.283 | O29: 1.2067 | P29: 1.1344 | Q29: 1.2253 | R29: 1.4338 | S29: 1.216 | T29: 1.283 | V29: 2.7644
A30: 57 | B30: 1.268 | L30: 42.9 | M30: 1.2305 | N30: 1.2809 | O30: 1.2392 | P30: 1.1323 | Q30: 1.2218 | R30: 1.4316 | S30: 1.2305 | T30: 1.2809 | V30: 2.7644
A31: 58 | B31: 1.291 | L31: 43 | M31: 1.209 | N31: 1.2788 | O31: 1.1997 | P31: 1.1303 | Q31: 1.2183 | R31: 1.4295 | S31: 1.209 | T31: 1.2788 | V31: 2.7536
A32: 59 | B32: 1.315 | F32: 44 | G32: 44 | L32: 43.1 | M32: 1.2055 | N32: 1.2767 | O32: 1.1962 | P32: 1.1282 | Q32: 1.2148 | R32: 1.4273 | S32: 1.2055 | T32: 1.2767 | V32: 2.732
A33: 60 | B33: 1.34 | F33: 48 | G33: 48 | L33: 43.2 | M33: 1.202 | N33: 1.2746 | O33: 1.1927 | P33: 1.1261 | Q33: 1.2113 | R33: 1.4252 | S33: 1.202 | T33: 1.2746 | V33: 2.7216
A34: 61 | B34: 1.366 | F34: 52 | G34: 52 | L34: 43.3 | M34: 1.1986 | N34: 1.2725 | O34: 1.1893 | P34: 1.1241 | Q34: 1.2079 | R34: 1.4231 | S34: 1.1986 | T34: 1.2725 | V34: 2.7112
A35: 62 | B35: 1.393 | F35: 56 | G35: 56 | L35: 43.4 | M35: 1.19515 | N35: 1.2704 | O35: 1.1858 | P35: 1.122 | Q35: 1.2045 | R35: 1.4209 | S35: 1.19515 | T35: 1.2704 | V35: 2.7112
A36: 63 | B36: 1.421 | F36: 60 | G36: 60 | L36: 43.5 | M36: 1.19175 | N36: 1.2684 | O36: 1.1824 | P36: 1.12 | Q36: 1.2011 | R36: 1.4188 | S36: 1.19175 | T36: 1.2684 | V36: 2.701
A37: 64 | B37: 1.45 | F37: 67.5 | G37: 67.5 | L37: 43.6 | M37: 1.18845 | N37: 1.2662 | O37: 1.1791 | P37: 1.118 | Q37: 1.1978 | R37: 1.4166 | S37: 1.18845 | T37: 1.2662 | V37: 2.681
A38: 65 | B38: 1.48 | F38: 75 | G38: 75 | L38: 43.7 | M38: 1.18505 | N38: 1.2642 | O38: 1.1757 | P38: 1.1159 | Q38: 1.1944 | R38: 1.4145 | S38: 1.18505 | T38: 1.2642 | V38: 2.671
A39: 66 | B39: 1.511 | F39: 82.5 | G39: 82.5 | L39: 43.8 | M39: 1.1817 | N39: 1.2621 | O39: 1.1723 | P39: 1.1139 | Q39: 1.1911 | R39: 1.4123 | S39: 1.1817 | T39: 1.2621 | V39: 2.661
A40: 67 | B40: 1.543 | F40: 90 | G40: 90 | L40: 43.9 | M40: 1.1955 | N40: 1.26 | O40: 1.2032 | P40: 1.1119 | Q40: 1.1878 | R40: 1.4102 | S40: 1.1955 | T40: 1.26 | V40: 2.661
A41: 68 | B41: 1.576 | F41: 97 | G41: 97.0024 | L41: 44 | M41: 1.17515 | N41: 1.258 | O41: 1.1657 | P41: 1.1099 | Q41: 1.1846 | R41: 1.4081 | S41: 1.17515 | T41: 1.258 | V41: 2.6416
A42: 69 | B42: 1.61 | F42: 100 | G42: 100 | L42: 44.1 | M42: 1.17185 | N42: 1.2559 | O42: 1.1624 | P42: 1.1079 | Q42: 1.1813 | R42: 1.4059 | S42: 1.17185 | T42: 1.2559 | V42: 2.632
A43: 70 | B43: 1.645 | F43: 105 | G43: 105.8208 | L43: 44.2 | M43: 1.1686 | N43: 1.2538 | O43: 1.1591 | P43: 1.1059 | Q43: 1.1781 | R43: 1.4038 | S43: 1.1686 | T43: 1.2538 | V43: 2.6232
A44: 71 | B44: 1.681 | F44: 110 | G44: 110 | L44: 44.3 | M44: 1.16535 | N44: 1.2518 | O44: 1.1558 | P44: 1.1039 | Q44: 1.1749 | R44: 1.4017 | S44: 1.16535 | T44: 1.2518 | V44: 2.6144
A45: 72 | B45: 1.718 | F45: 114 | G45: 114.6392 | L45: 44.4 | M45: 1.16215 | N45: 1.2497 | O45: 1.1526 | P45: 1.102 | Q45: 1.1717 | R45: 1.3995 | S45: 1.16215 | T45: 1.2497 | V45: 2.6058
A46: 73 | B46: 1.756 | F46: 123 | G46: 123.4576 | L46: 44.5 | M46: 1.159 | N46: 1.2477 | O46: 1.1494 | P46: 1.1 | Q46: 1.1686 | R46: 1.3974 | S46: 1.159 | T46: 1.2477 | V46: 2.5974
A47: 74 | B47: 1.795 | F47: 125 | G47: 125 | L47: 44.6 | M47: 1.1558 | N47: 1.2457 | O47: 1.1462 | P47: 1.098 | Q47: 1.1654 | R47: 1.3953 | S47: 1.1558 | T47: 1.2457 | V47: 2.589
A48: 75 | B48: 1.835 | F48: 132 | G48: 132.276 | L48: 44.7 | M48: 1.15265 | N48: 1.2436 | O48: 1.143 | P48: 1.0961 | Q48: 1.1623 | R48: 1.3932 | S48: 1.15265 | T48: 1.2436 | V48: 2.5802
A49: 76 | B49: 1.876 | F49: 140 | G49: 140 | L49: 44.8 | M49: 1.1495 | N49: 1.2416 | O49: 1.1398 | P49: 1.0941 | Q49: 1.1592 | R49: 1.391 | S49: 1.1495 | T49: 1.2416 | V49: 2.5714
A50: 77 | B50: 1.918 | F50: 145 | G50: 145 | L50: 44.9 | M50: 1.1626 | N50: 1.2396 | O50: 1.169 | P50: 1.0922 | Q50: 1.1562 | R50: 1.3889 | S50: 1.1626 | T50: 1.2396 | V50: 2.5626
A51: 78 | B51: 1.961 | F51: 148 | G51: 148.8105 | L51: 45 | M51: 1.1443 | N51: 1.2373 | O51: 1.1355 | P51: 1.0903 | Q51: 1.1531 | R51: 1.3868 | S51: 1.1443 | T51: 1.2373 | V51: 2.5538
A52: 79 | B52: 2.005 | F52: 165 | G52: 165.345 | L52: 45.1 | M52: 1.14025 | N52: 1.2355 | O52: 1.1304 | P52: 1.0883 | Q52: 1.1501 | R52: 1.3847 | S52: 1.14025 | T52: 1.2355 | V52: 2.545
A53: 80 | B53: 2.05 | F53: 181 | G53: 181.8795 | L53: 45.2 | M53: 1.1372 | N53: 1.2335 | O53: 1.1273 | P53: 1.0864 | Q53: 1.1471 | R53: 1.3825 | S53: 1.1372 | T53: 1.2335 | V53: 2.5362
F54: 198 | G54: 198.414 | L54: 45.3 | M54: 1.13415 | N54: 1.2315 | O54: 1.1242 | P54: 1.0845 | Q54: 1.1441 | R54: 1.3804 | S54: 1.13415 | T54: 1.2315 | V54: 2.5274
F55: 220 | G55: 220.46 | L55: 45.4 | M55: 1.1311 | N55: 1.2295 | O55: 1.1211 | P55: 1.0826 | Q55: 1.1411 | R55: 1.3783 | S55: 1.1311 | T55: 1.2295 | V55: 2.519
F56: 242 | G56: 242.506 | L56: 45.5 | M56: 1.12815 | N56: 1.2275 | O56: 1.1181 | P56: 1.0807 | Q56: 1.1382 | R56: 1.3762 | S56: 1.12815 | T56: 1.2275 | V56: 2.511
F57: 275 | G57: 275.575 | L57: 45.6 | M57: 1.1251 | N57: 1.2255 | O57: 1.115 | P57: 1.0788 | Q57: 1.1352 | R57: 1.3741 | S57: 1.1251 | T57: 1.2255 | V57: 2.503
F58: 308 | G58: 308.644 | L58: 45.7 | M58: 1.12215 | N58: 1.2235 | O58: 1.112 | P58: 1.0769 | Q58: 1.1323 | R58: 1.372 | S58: 1.12215 | T58: 1.2235 | V58: 2.495
F59: 319 | G59: 319.667 | L59: 45.8 | M59: 1.1192 | N59: 1.2215 | O59: 1.109 | P59: 1.075 | Q59: 1.1294 | R59: 1.3699 | S59: 1.1192 | T59: 1.2215 | V59: 2.487
L60: 45.9 | M60: 1.13165 | N60: 1.2195 | O60: 1.1367 | P60: 1.0732 | Q60: 1.1266 | R60: 1.3678 | S60: 1.13165 | T60: 1.2195 | V60: 2.479
L61: 46 | M61: 1.1134 | N61: 1.2175 | O61: 1.1031 | P61: 1.0713 | Q61: 1.1237 | R61: 1.3657 | S61: 1.1134 | T61: 1.2175 | V61: 2.471
L62: 46.1 | M62: 1.1105 | N62: 1.2156 | O62: 1.1001 | P62: 1.0694 | Q62: 1.1209 | R62: 1.3636 | S62: 1.1105 | T62: 1.2156 | V62: 2.463
L63: 46.2 | M63: 1.10765 | N63: 1.2136 | O63: 1.0972 | P63: 1.0676 | Q63: 1.1181 | R63: 1.3615 | S63: 1.10765 | T63: 1.2136 | V63: 2.455
L64: 46.3 | M64: 1.10475 | N64: 1.2116 | O64: 1.0942 | P64: 1.0657 | Q64: 1.1153 | R64: 1.3594 | S64: 1.10475 | T64: 1.2116 | V64: 2.447
L65: 46.4 | M65: 1.1019 | N65: 1.2097 | O65: 1.0913 | P65: 1.0639 | Q65: 1.1125 | R65: 1.3573 | S65: 1.1019 | T65: 1.2097 | V65: 2.4392
L66: 46.5 | M66: 1.09905 | N66: 1.2077 | O66: 1.0884 | P66: 1.0621 | Q66: 1.1097 | R66: 1.3553 | S66: 1.09905 | T66: 1.2077 | V66: 2.4316
L67: 46.6 | M67: 1.0963 | N67: 1.2058 | O67: 1.0856 | P67: 1.0602 | Q67: 1.107 | R67: 1.3532 | S67: 1.0963 | T67: 1.2058 | V67: 2.424
L68: 46.7 | M68: 1.09345 | N68: 1.2038 | O68: 1.0827 | P68: 1.0584 | Q68: 1.1042 | R68: 1.3511 | S68: 1.09345 | T68: 1.2038 | V68: 2.4164
L69: 46.8 | M69: 1.0907 | N69: 1.2019 | O69: 1.0799 | P69: 1.0566 | Q69: 1.1015 | R69: 1.349 | S69: 1.0907 | T69: 1.2019 | V69: 2.4088
L70: 46.9 | M70: 1.1024 | N70: 1.2 | O70: 1.106 | P70: 1.0548 | Q70: 1.0988 | R70: 1.347 | S70: 1.1024 | T70: 1.2 | V70: 2.4014
L71: 47 | M71: 1.0852 | N71: 1.198 | O71: 1.0742 | P71: 1.053 | Q71: 1.0962 | R71: 1.3449 | S71: 1.0852 | T71: 1.198 | V71: 2.3942
L72: 47.1 | M72: 1.08245 | N72: 1.1961 | O72: 1.0714 | P72: 1.0512 | Q72: 1.0935 | R72: 1.3428 | S72: 1.08245 | T72: 1.1961 | V72: 2.387
L73: 47.2 | M73: 1.07975 | N73: 1.1942 | O73: 1.0686 | P73: 1.0494 | Q73: 1.0909 | R73: 1.3408 | S73: 1.07975 | T73: 1.1942 | V73: 2.3798
L74: 47.3 | M74: 1.07705 | N74: 1.1922 | O74: 1.0659 | P74: 1.0476 | Q74: 1.0882 | R74: 1.3387 | S74: 1.07705 | T74: 1.1922 | V74: 2.3726
L75: 47.4 | M75: 1.07435 | N75: 1.1904 | O75: 1.0631 | P75: 1.0458 | Q75: 1.0856 | R75: 1.3367 | S75: 1.07435 | T75: 1.1904 | V75: 2.3654
L76: 47.5 | M76: 1.0717 | N76: 1.1884 | O76: 1.0604 | P76: 1.0441 | Q76: 1.083 | R76: 1.3346 | S76: 1.0717 | T76: 1.1884 | V76: 2.3582
L77: 47.6 | M77: 1.0691 | N77: 1.1865 | O77: 1.0577 | P77: 1.0423 | Q77: 1.0805 | R77: 1.3326 | S77: 1.0691 | T77: 1.1865 | V77: 2.351
L78: 47.7 | M78: 1.06645 | N78: 1.1846 | O78: 1.055 | P78: 1.0405 | Q78: 1.0779 | R78: 1.3305 | S78: 1.06645 | T78: 1.1846 | V78: 2.343
L79: 47.8 | M79: 1.06385 | N79: 1.1827 | O79: 1.0523 | P79: 1.0388 | Q79: 1.0754 | R79: 1.3285 | S79: 1.06385 | T79: 1.1827 | V79: 2.335
L80: 47.9 | M80: 1.0749 | N80: 1.1809 | O80: 1.077 | P80: 1.037 | Q80: 1.0728 | R80: 1.3265 | S80: 1.0749 | T80: 1.1809 | V80: 2.3278
L81: 48 | M81: 1.0586 | N81: 1.179 | O81: 1.0469 | P81: 1.0353 | Q81: 1.0703 | R81: 1.3244 | S81: 1.0586 | T81: 1.179 | V81: 2.3214
L82: 48.1 | M82: 1.05605 | N82: 1.1771 | O82: 1.0443 | P82: 1.0336 | Q82: 1.0678 | R82: 1.3224 | S82: 1.05605 | T82: 1.1771 | V82: 2.315
L83: 48.2 | M83: 1.05345 | N83: 1.1752 | O83: 1.0416 | P83: 1.0318 | Q83: 1.0653 | R83: 1.3204 | S83: 1.05345 | T83: 1.1752 | V83: 2.3078
L84: 48.3 | M84: 1.05095 | N84: 1.1733 | O84: 1.039 | P84: 1.0301 | Q84: 1.0629 | R84: 1.3183 | S84: 1.05095 | T84: 1.1733 | V84: 2.3006
L85: 48.4 | M85: 1.0484 | N85: 1.1715 | O85: 1.0364 | P85: 1.0284 | Q85: 1.0604 | R85: 1.3163 | S85: 1.0484 | T85: 1.1715 | V85: 2.2936
L86: 48.5 | M86: 1.0459 | N86: 1.1696 | O86: 1.0338 | P86: 1.0267 | Q86: 1.058 | R86: 1.3143 | S86: 1.0459 | T86: 1.1696 | V86: 2.2868
L87: 48.6 | M87: 1.0434 | N87: 1.1678 | O87: 1.0312 | P87: 1.025 | Q87: 1.0556 | R87: 1.3123 | S87: 1.0434 | T87: 1.1678 | V87: 2.28
L88: 48.7 | M88: 1.04095 | N88: 1.1659 | O88: 1.0287 | P88: 1.0233 | Q88: 1.0532 | R88: 1.3103 | S88: 1.04095 | T88: 1.1659 | V88: 2.2732
L89: 48.8 | M89: 1.03845 | N89: 1.1641 | O89: 1.0261 | P89: 1.0216 | Q89: 1.0508 | R89: 1.3083 | S89: 1.03845 | T89: 1.1641 | V89: 2.2664
L90: 48.9 | M90: 1.049 | N90: 1.1622 | O90: 1.0496 | P90: 1.0199 | Q90: 1.0484 | R90: 1.3063 | S90: 1.049 | T90: 1.1622 | V90: 2.2598
L91: 49 | M91: 1.03355 | N91: 1.1604 | O91: 1.0211 | P91: 1.0182 | Q91: 1.046 | R91: 1.3043 | S91: 1.03355 | T91: 1.1604 | V91: 2.2534
L92: 49.1 | M92: 1.03115 | N92: 1.1585 | O92: 1.0186 | P92: 1.0165 | Q92: 1.0437 | R92: 1.3023 | S92: 1.03115 | T92: 1.1585 | V92: 2.247
L93: 49.2 | M93: 1.0287 | N93: 1.1568 | O93: 1.0161 | P93: 1.0148 | Q93: 1.0413 | R93: 1.3004 | S93: 1.0287 | T93: 1.1568 | V93: 2.2406
L94: 49.3 | M94: 1.0713 | N94: 1.1549 | O94: 1.1036 | P94: 1.0132 | Q94: 1.039 | R94: 1.2984 | S94: 1.0713 | T94: 1.1549 | V94: 2.2342
L95: 49.4 | M95: 1.0239 | N95: 1.1531 | O95: 1.0111 | P95: 1.0115 | Q95: 1.0367 | R95: 1.2964 | S95: 1.0239 | T95: 1.1531 | V95: 2.228
L96: 49.5 | M96: 1.02155 | N96: 1.1513 | O96: 1.0087 | P96: 1.0098 | Q96: 1.0344 | R96: 1.2944 | S96: 1.02155 | T96: 1.1513 | V96: 2.222
L97: 49.6 | M97: 1.01915 | N97: 1.1495 | O97: 1.0062 | P97: 1.0082 | Q97: 1.0321 | R97: 1.2925 | S97: 1.01915 | T97: 1.1495 | V97: 2.216
L98: 49.7 | M98: 1.01685 | N98: 1.1477 | O98: 1.0038 | P98: 1.0065 | Q98: 1.0299 | R98: 1.2905 | S98: 1.01685 | T98: 1.1477 | V98: 2.2104
L99: 49.8 | M99: 1.0145 | N99: 1.1459 | O99: 1.0014 | P99: 1.0049 | Q99: 1.0276 | R99: 1.2885 | S99: 1.0145 | T99: 1.1459 | V99: 2.2048
L100: 49.9 | M100: 1.0245 | N100: 1.1441 | O100: 1.0236 | P100: 1.0033 | Q100: 1.0254 | R100: 1.2866 | S100: 1.0245 | T100: 1.1441 | V100: 2.1992
L101: 50 | M101: 1.0099 | N101: 1.1423 | O101: 0.9966 | P101: 1.0016 | Q101: 1.0232 | R101: 1.2846 | S101: 1.0099 | T101: 1.1423 | U101: 1.955 | V101: 2.1936
L102: 50.1 | M102: 1.0076 | N102: 1.1405 | O102: 0.9942 | P102: 1 | Q102: 1.021 | R102: 1.2827 | S102: 1.0076 | T102: 1.1405 | U102: 1.9478 | V102: 2.188
L103: 50.2 | M103: 1.00535 | N103: 1.1388 | O103: 0.9919 | P103: 0.9984 | Q103: 1.0188 | R103: 1.2808 | S103: 1.00535 | T103: 1.1388 | U103: 1.9406 | V103: 2.1824
L104: 50.3 | M104: 1.00305 | N104: 1.137 | O104: 0.9895 | P104: 0.9968 | Q104: 1.0166 | R104: 1.2788 | S104: 1.00305 | T104: 1.137 | U104: 1.9406 | V104: 2.1768
L105: 50.4 | M105: 1.0008 | N105: 1.1352 | O105: 0.9872 | P105: 0.9952 | Q105: 1.0144 | R105: 1.2769 | S105: 1.0008 | T105: 1.1352 | U105: 1.9336 | V105: 2.1712
L106: 50.5 | M106: 0.99855 | N106: 1.1334 | O106: 0.9849 | P106: 0.9935 | Q106: 1.0122 | R106: 1.275 | S106: 0.99855 | T106: 1.1334 | U106: 1.92 | V106: 2.1656
L107: 50.6 | M107: 0.99635 | N107: 1.1317 | O107: 0.9826 | P107: 0.9919 | Q107: 1.0101 | R107: 1.273 | S107: 0.99635 | T107: 1.1317 | U107: 1.9128 | V107: 2.16
L108: 50.7 | M108: 0.9941 | N108: 1.1299 | O108: 0.9803 | P108: 0.9904 | Q108: 1.0079 | R108: 1.2711 | S108: 0.9941 | T108: 1.1299 | U108: 1.9056 | V108: 2.1544
L109: 50.8 | M109: 0.9919 | N109: 1.1282 | O109: 0.978 | P109: 0.9888 | Q109: 1.0058 | R109: 1.2692 | S109: 0.9919 | T109: 1.1282 | U109: 1.9056 | V109: 2.1488
L110: 50.9 | M110: 1.00135 | N110: 1.1264 | O110: 0.999 | P110: 0.9872 | Q110: 1.0037 | R110: 1.2673 | S110: 1.00135 | T110: 1.1264 | U110: 1.8986 | V110: 2.1432
L111: 51 | M111: 0.9875 | N111: 1.1247 | O111: 0.9734 | P111: 0.9856 | Q111: 1.0016 | R111: 1.2654 | S111: 0.9875 | T111: 1.1247 | U111: 1.885 | V111: 2.1376
L112: 51.1 | M112: 0.98535 | N112: 1.123 | O112: 0.9712 | P112: 0.984 | Q112: 0.9995 | R112: 1.2635 | S112: 0.98535 | T112: 1.123 | U112: 1.8778 | V112: 2.132
L113: 51.2 | M113: 0.98325 | N113: 1.1212 | O113: 0.969 | P113: 0.9825 | Q113: 0.9975 | R113: 1.2616 | S113: 0.98325 | T113: 1.1212 | U113: 1.8706 | V113: 2.1268
L114: 51.3 | M114: 0.98105 | N114: 1.1195 | O114: 0.9667 | P114: 0.9809 | Q114: 0.9954 | R114: 1.2597 | S114: 0.98105 | T114: 1.1195 | U114: 1.8706 | V114: 2.1216
L115: 51.4 | M115: 0.9789 | N115: 1.1178 | O115: 0.9645 | P115: 0.9793 | Q115: 0.9933 | R115: 1.2578 | S115: 0.9789 | T115: 1.1178 | U115: 1.8638 | V115: 2.1162
L116: 51.5 | M116: 0.9768 | N116: 1.1161 | O116: 0.9623 | P116: 0.9778 | Q116: 0.9913 | R116: 1.256 | S116: 0.9768 | T116: 1.1161 | U116: 1.851 | V116: 2.1106
L117: 51.6 | M117: 0.9747 | N117: 1.1144 | O117: 0.9601 | P117: 0.9762 | Q117: 0.9893 | R117: 1.2541 | S117: 0.9747 | T117: 1.1144 | U117: 1.8446 | V117: 2.105
L118: 51.7 | M118: 0.97265 | N118: 1.1126 | O118: 0.958 | P118: 0.9747 | Q118: 0.9873 | R118: 1.2522 | S118: 0.97265 | T118: 1.1126 | U118: 1.8382 | V118: 2.0998
L119: 51.8 | M119: 0.97055 | N119: 1.111 | O119: 0.9558 | P119: 0.9731 | Q119: 0.9853 | R119: 1.2504 | S119: 0.97055 | T119: 1.111 | U119: 1.8382 | V119: 2.0946
L120: 51.9 | M120: 0.9795 | N120: 1.1093 | O120: 0.9757 | P120: 0.9716 | Q120: 0.9833 | R120: 1.2485 | S120: 0.9795 | T120: 1.1093 | U120: 1.8316 | V120: 2.0894
L121: 52 | M121: 0.9664 | N121: 1.1076 | O121: 0.9515 | P121: 0.9701 | Q121: 0.9813 | R121: 1.2466 | S121: 0.9664 | T121: 1.1076 | U121: 1.818 | V121: 2.0842
L122: 52.1 | M122: 0.96435 | N122: 1.1059 | O122: 0.9494 | P122: 0.9686 | Q122: 0.9793 | R122: 1.2448 | S122: 0.96435 | T122: 1.1059 | U122: 1.812 | V122: 2.079
L123: 52.2 | M123: 0.9623 | N123: 1.1042 | O123: 0.9473 | P123: 0.967 | Q123: 0.9773 | R123: 1.2429 | S123: 0.9623 | T123: 1.1042 | U123: 1.806 | V123: 2.0738
L124: 52.3 | M124: 0.9603 | N124: 1.1025 | O124: 0.9452 | P124: 0.9655 | Q124: 0.9754 | R124: 1.2411 | S124: 0.9603 | T124: 1.1025 | U124: 1.806 | V124: 2.0686
L125: 52.4 | M125: 0.95835 | N125: 1.1009 | O125: 0.9432 | P125: 0.964 | Q125: 0.9735 | R125: 1.2393 | S125: 0.95835 | T125: 1.1009 | U125: 1.8 | V125: 2.0634
L126: 52.5 | M126: 0.95625 | N126: 1.0992 | O126: 0.941 | P126: 0.9625 | Q126: 0.9715 | R126: 1.2374 | S126: 0.95625 | T126: 1.0992 | U126: 1.788 | V126: 2.0582
L127: 52.6 | M127: 0.95425 | N127: 1.0975 | O127: 0.9389 | P127: 0.961 | Q127: 0.9696 | R127: 1.2356 | S127: 0.95425 | T127: 1.0975 | U127: 1.782 | V127: 2.053
L128: 52.7 | M128: 0.95225 | N128: 1.0959 | O128: 0.9368 | P128: 0.9595 | Q128: 0.9677 | R128: 1.2338 | S128: 0.95225 | T128: 1.0959 | U128: 1.776 | V128: 2.0482
L129: 52.8 | M129: 0.9503 | N129: 1.0942 | O129: 0.9348 | P129: 0.958 | Q129: 0.9658 | R129: 1.232 | S129: 0.9503 | T129: 1.0942 | U129: 1.776 | V129: 2.0434
L130: 52.9 | M130: 0.95875 | N130: 1.0926 | O130: 0.9536 | P130: 0.9565 | Q130: 0.9639 | R130: 1.2302 | S130: 0.95875 | T130: 1.0926 | U130: 1.77 | V130: 2.0384
L131: 53 | M131: 0.9464 | N131: 1.091 | O131: 0.9307 | P131: 0.955 | Q131: 0.9621 | R131: 1.2284 | S131: 0.9464 | T131: 1.091 | U131: 1.758 | V131: 2.0332
L132: 53.1 | M132: 0.94445 | N132: 1.0893 | O132: 0.9287 | P132: 0.9536 | Q132: 0.9602 | R132: 1.2266 | S132: 0.94445 | T132: 1.0893 | U132: 1.752 | V132: 2.028
L133: 53.2 | M133: 0.9425 | N133: 1.0877 | O133: 0.9267 | P133: 0.9521 | Q133: 0.9583 | R133: 1.2248 | S133: 0.9425 | T133: 1.0877 | U133: 1.746 | V133: 2.0232
L134: 53.3 | M134: 0.9406 | N134: 1.0861 | O134: 0.9247 | P134: 0.9506 | Q134: 0.9565 | R134: 1.223 | S134: 0.9406 | T134: 1.0861 | U134: 1.746 | V134: 2.0184
L135: 53.4 | M135: 0.9387 | N135: 1.0844 | O135: 0.9227 | P135: 0.9492 | Q135: 0.9547 | R135: 1.2212 | S135: 0.9387 | T135: 1.0844 | U135: 1.7398 | V135: 2.0136
L136: 53.5 | M136: 0.9373 | N136: 1.0828 | O136: 0.9218 | P136: 0.9477 | Q136: 0.9528 | R136: 1.2194 | S136: 0.9373 | T136: 1.0828 | U136: 1.727 | V136: 2.0088
L137: 53.6 | M137: 0.9349 | N137: 1.0812 | O137: 0.9188 | P137: 0.9462 | Q137: 0.951 | R137: 1.2176 | S137: 0.9349 | T137: 1.0812 | U137: 1.721 | V137: 2.004
L138: 53.7 | M138: 0.93305 | N138: 1.0796 | O138: 0.9169 | P138: 0.9448 | Q138: 0.9492 | R138: 1.2159 | S138: 0.93305 | T138: 1.0796 | U138: 1.715 | V138: 2
L139: 53.8 | M139: 0.93115 | N139: 1.078 | O139: 0.9149 | P139: 0.9433 | Q139: 0.9474 | R139: 1.2141 | S139: 0.93115 | T139: 1.078 | U139: 1.715 | V139: 1.996
L140: 53.9 | M140: 0.93925 | N140: 1.0764 | O140: 0.9328 | P140: 0.9419 | Q140: 0.9457 | R140: 1.2123 | S140: 0.93925 | T140: 1.0764 | U140: 1.7024 | V140: 1.992
L141: 54 | M141: 0.9275 | N141: 1.0748 | O141: 0.9111 | P141: 0.9405 | Q141: 0.9439 | R141: 1.2106 | S141: 0.9275 | T141: 1.0748 | U141: 1.696 | V141: 1.988
L142: 54.1 | M142: 0.92565 | N142: 1.0732 | O142: 0.9092 | P142: 0.939 | Q142: 0.9421 | R142: 1.2088 | S142: 0.92565 | T142: 1.0732 | U142: 1.6904 | V142: 1.984
L143: 54.2 | M143: 0.92385 | N143: 1.0716 | O143: 0.9073 | P143: 0.9376 | Q143: 0.9404 | R143: 1.2071 | S143: 0.92385 | T143: 1.0716 | U143: 1.6848 | V143: 1.98
L144: 54.3 | M144: 0.922 | N144: 1.0701 | O144: 0.9054 | P144: 0.9362 | Q144: 0.9386 | R144: 1.2054 | S144: 0.922 | T144: 1.0701 | U144: 1.679 | V144: 1.976
L145: 54.4 | M145: 0.9202 | N145: 1.0684 | O145: 0.9035 | P145: 0.9348 | Q145: 0.9369 | R145: 1.2036 | S145: 0.9202 | T145: 1.0684 | U145: 1.673 | V145: 1.9718
L146: 54.5 | M146: 0.9184 | N146: 1.0669 | O146: 0.9016 | P146: 0.9333 | Q146: 0.9352 | R146: 1.2019 | S146: 0.9184 | T146: 1.0669 | U146: 1.667 | V146: 1.9674
L147: 54.6 | M147: 0.9166 | N147: 1.0653 | O147: 0.8998 | P147: 0.9319 | Q147: 0.9334 | R147: 1.2002 | S147: 0.9166 | T147: 1.0653 | U147: 1.6622 | V147: 1.963
L148: 54.7 | M148: 0.9148 | N148: 1.0638 | O148: 0.8979 | P148: 0.9305 | Q148: 0.9317 | R148: 1.1985 | S148: 0.9148 | T148: 1.0638 | U148: 1.6574 | V148: 1.959
L149: 54.8 | M149: 0.91305 | N149: 1.0622 | O149: 0.8961 | P149: 0.9291 | Q149: 0.93 | R149: 1.1967 | S149: 0.91305 | T149: 1.0622 | U149: 1.6524 | V149: 1.955
L150: 54.9 | M150: 0.92065 | N150: 1.0606 | O150: 0.913 | P150: 0.9277 | Q150: 0.9283 | R150: 1.195 | S150: 0.92065 | T150: 1.0606 | U150: 1.6472 | V150: 1.9508
L151: 55 | M151: 0.90955 | N151: 1.0591 | O151: 0.8924 | P151: 0.9263 | Q151: 0.9267 | R151: 1.1933 | S151: 0.90955 | T151: 1.0591 | U151: 1.642 | V151: 1.9464
L152: 55.1 | M152: 0.9078 | N152: 1.0575 | O152: 0.8906 | P152: 0.9249 | Q152: 0.925 | R152: 1.1916 | S152: 0.9078 | T152: 1.0575 | U152: 1.6372 | V152: 1.942
L153: 55.2 | M153: 0.90605 | N153: 1.0561 | O153: 0.8888 | P153: 0.9235 | Q153: 0.9233 | R153: 1.19 | S153: 0.90605 | T153: 1.0561 | U153: 1.6324 | V153: 1.938
L154: 55.3 | M154: 0.90435 | N154: 1.0545 | O154: 0.887 | P154: 0.9222 | Q154: 0.9217 | R154: 1.1883 | S154: 0.90435 | T154: 1.0545 | U154: 1.6274 | V154: 1.934
L155: 55.4 | M155: 0.90265 | N155: 1.053 | O155: 0.8853 | P155: 0.9208 | Q155: 0.92 | R155: 1.1866 | S155: 0.90265 | T155: 1.053 | U155: 1.6222 | V155: 1.9302
L156: 55.5 | M156: 0.90095 | N156: 1.0514 | O156: 0.8835 | P156: 0.9194 | Q156: 0.9184 | R156: 1.1849 | S156: 0.90095 | T156: 1.0514 | U156: 1.617 | V156: 1.9266
L157: 55.6 | M157: 0.89925 | N157: 1.05 | O157: 0.8817 | P157: 0.918 | Q157: 0.9168 | R157: 1.1832 | S157: 0.89925 | T157: 1.05 | U157: 1.6122 | V157: 1.923
L158: 55.7 | M158: 0.8976 | N158: 1.0484 | O158: 0.88 | P158: 0.9167 | Q158: 0.9152 | R158: 1.1816 | S158: 0.8976 | T158: 1.0484 | U158: 1.6074 | V158: 1.9194
L159: 55.8 | M159: 0.89585 | N159: 1.0469 | O159: 0.8782 | P159: 0.9153 | Q159: 0.9135 | R159: 1.1799 | S159: 0.89585 | T159: 1.0469 | U159: 1.6026 | V159: 1.9158
L160: 55.9 | M160: 0.9031 | N160: 1.0454 | O160: 0.8943 | P160: 0.914 | Q160: 0.9119 | R160: 1.1783 | S160: 0.9031 | T160: 1.0454 | U160: 1.5978 | V160: 1.9122
L161: 56 | M161: 0.89255 | N161: 1.0439 | O161: 0.8748 | P161: 0.9126 | Q161: 0.9103 | R161: 1.1766 | S161: 0.89255 | T161: 1.0439 | U161: 1.593 | V161: 1.9086
L162: 56.1 | M162: 0.89095 | N162: 1.0424 | O162: 0.8731 | P162: 0.9112 | Q162: 0.9088 | R162: 1.175 | S162: 0.89095 | T162: 1.0424 | U162: 1.5878 | V162: 1.905
L163: 56.2 | M163: 0.8893 | N163: 1.041 | O163: 0.8714 | P163: 0.9099 | Q163: 0.9072 | R163: 1.1733 | S163: 0.8893 | T163: 1.041 | U163: 1.5826 | V163: 1.9014
L164: 56.3 | M164: 0.88765 | N164: 1.0394 | O164: 0.8697 | P164: 0.9086 | Q164: 0.9056 | R164: 1.1717 | S164: 0.88765 | T164: 1.0394 | U164: 1.5776 | V164: 1.8978
L165: 56.4 | M165: 0.88605 | N165: 1.038 | O165: 0.868 | P165: 0.9072 | Q165: 0.9041 | R165: 1.1701 | S165: 0.88605 | T165: 1.038 | U165: 1.5728 | V165: 1.8942
L166: 56.5 | M166: 0.8844 | N166: 1.0365 | O166: 0.8663 | P166: 0.9059 | Q166: 0.9025 | R166: 1.1684 | S166: 0.8844 | T166: 1.0365 | U166: 1.568 | V166: 1.8906
L167: 56.6 | M167: 0.8828 | N167: 1.035 | O167: 0.8646 | P167: 0.9046 | Q167: 0.901 | R167: 1.1668 | S167: 0.8828 | T167: 1.035 | U167: 1.5628 | V167: 1.887
L168: 56.7 | M168: 0.8812 | N168: 1.0335 | O168: 0.863 | P168: 0.9032 | Q168: 0.8994 | R168: 1.1652 | S168: 0.8812 | T168: 1.0335 | U168: 1.5576 | V168: 1.8834
L169: 56.8 | M169: 0.8796 | N169: 1.0321 | O169: 0.8613 | P169: 0.9019 | Q169: 0.8979 | R169: 1.1636 | S169: 0.8796 | T169: 1.0321 | U169: 1.5526 | V169: 1.8798
L170: 56.9 | M170: 0.88645 | N170: 1.0306 | O170: 0.8765 | P170: 0.9006 | Q170: 0.8964 | R170: 1.162 | S170: 0.88645 | T170: 1.0306 | U170: 1.5478 | V170: 1.8762
L171: 57 | M171: 0.87645 | N171: 1.0292 | O171: 0.858 | P171: 0.8993 | Q171: 0.8949 | R171: 1.1604 | S171: 0.87645 | T171: 1.0292 | U171: 1.543 | V171: 1.8726
L172: 57.1 | M172: 0.8749 | N172: 1.0277 | O172: 0.8564 | P172: 0.898 | Q172: 0.8934 | R172: 1.1588 | S172: 0.8749 | T172: 1.0277 | U172: 1.5382 | V172: 1.869
L173: 57.2 | M173: 0.87335 | N173: 1.0263 | O173: 0.8548 | P173: 0.8967 | Q173: 0.8919 | R173: 1.1572 | S173: 0.87335 | T173: 1.0263 | U173: 1.5334 | V173: 1.8654
L174: 57.3 | M174: 0.8718 | N174: 1.0248 | O174: 0.8532 | P174: 0.8954 | Q174: 0.8904 | R174: 1.1556 | S174: 0.8718 | T174: 1.0248 | U174: 1.5284 | V174: 1.8618
L175: 57.4 | M175: 0.87025 | N175: 1.0234 | O175: 0.8516 | P175: 0.8941 | Q175: 0.8889 | R175: 1.1541 | S175: 0.87025 | T175: 1.0234 | U175: 1.5232 | V175: 1.8584
L176: 57.5 | M176: 0.8687 | N176: 1.022 | O176: 0.85 | P176: 0.8928 | Q176: 0.8874 | R176: 1.1525 | S176: 0.8687 | T176: 1.022 | U176: 1.518 | V176: 1.8552
L177: 57.6 | M177: 0.86715 | N177: 1.0205 | O177: 0.8484 | P177: 0.8915 | Q177: 0.8859 | R177: 1.1509 | S177: 0.86715 | T177: 1.0205 | U177: 1.5132 | V177: 1.852
L178: 57.7 | M178: 0.86565 | N178: 1.0191 | O178: 0.8468 | P178: 0.8902 | Q178: 0.8845 | R178: 1.1494 | S178: 0.86565 | T178: 1.0191 | U178: 1.5084 | V178: 1.8492
L179: 57.8 | M179: 0.86415 | N179: 1.0177 | O179: 0.8453 | P179: 0.8889 | Q179: 0.883 | R179: 1.1478 | S179: 0.86415 | T179: 1.0177 | U179: 1.5042 | V179: 1.8464
L180: 57.9 | M180: 0.87065 | N180: 1.0163 | O180: 0.8597 | P180: 0.8876 | Q180: 0.8816 | R180: 1.1463 | S180: 0.87065 | T180: 1.0163 | U180: 1.5006 | V180: 1.8436
L181: 58 | M181: 0.8612 | N181: 1.0149 | O181: 0.8422 | P181: 0.8863 | Q181: 0.8802 | R181: 1.1447 | S181: 0.8612 | T181: 1.0149 | U181: 1.497 | V181: 1.8408
L182: 58.1 | M182: 0.85965 | N182: 1.0135 | O182: 0.8406 | P182: 0.8851 | Q182: 0.8787 | R182: 1.1432 | S182: 0.85965 | T182: 1.0135 | U182: 1.4934 | V182: 1.838
L183: 58.2 | M183: 0.8582 | N183: 1.012 | O183: 0.8391 | P183: 0.8838 | Q183: 0.8773 | R183: 1.1416 | S183: 0.8582 | T183: 1.012 | U183: 1.4898 | V183: 1.8348
L184: 58.3 | M184: 0.85675 | N184: 1.0107 | O184: 0.8376 | P184: 0.8825 | Q184: 0.8759 | R184: 1.1401 | S184: 0.85675 | T184: 1.0107 | U184: 1.486 | V184: 1.8316
L185: 58.4 | M185: 0.8553 | N185: 1.0093 | O185: 0.8361 | P185: 0.8813 | Q185: 0.8745 | R185: 1.1386 | S185: 0.8553 | T185: 1.0093 | U185: 1.482 | V185: 1.8284
L186: 58.5 | M186: 0.8538 | N186: 1.0079 | O186: 0.8345 | P186: 0.88 | Q186: 0.8731 | R186: 1.1371 | S186: 0.8538 | T186: 1.0079 | U186: 1.478 | V186: 1.8252
L187: 58.6 | M187: 0.85235 | N187: 1.0065 | O187: 0.833 | P187: 0.8788 | Q187: 0.8717 | R187: 1.1355 | S187: 0.85235 | T187: 1.0065 | U187: 1.4744 | V187: 1.822
L188: 58.7 | M188: 0.85095 | N188: 1.0051 | O188: 0.8316 | P188: 0.8775 | Q188: 0.8703 | R188: 1.134 | S188: 0.85095 | T188: 1.0051 | U188: 1.4708 | V188: 1.8192
L189: 58.8 | M189: 0.8495 | N189: 1.0037 | O189: 0.8301 | P189: 0.8763 | Q189: 0.8689 | R189: 1.1325 | S189: 0.8495 | T189: 1.0037 | U189: 1.4672 | V189: 1.8164
L190: 58.9 | M190: 0.8556 | N190: 1.0024 | O190: 0.8437 | P190: 0.875 | Q190: 0.8675 | R190: 1.131 | S190: 0.8556 | T190: 1.0024 | U190: 1.4636 | V190: 1.8136
L191: 59 | M191: 0.84665 | N191: 1.001 | O191: 0.8271 | P191: 0.8738 | Q191: 0.8662 | R191: 1.1295 | S191: 0.84665 | T191: 1.001 | U191: 1.46 | V191: 1.8108
L192: 59.1 | M192: 0.84525 | N192: 0.9997 | O192: 0.8257 | P192: 0.8725 | Q192: 0.8648 | R192: 1.1281 | S192: 0.84525 | T192: 0.9997 | U192: 1.4564 | V192: 1.808
L193: 59.2 | M193: 0.84385 | N193: 0.99835 | O193: 0.8242 | P193: 0.8713 | Q193: 0.8635 | R193: 1.1266 | S193: 0.84385 | T193: 0.99835 | U193: 1.4528 | V193: 1.8056
L194: 59.3 | M194: 0.84245 | N194: 0.99695 | O194: 0.8228 | P194: 0.8701 | Q194: 0.8621 | R194: 1.1251 | S194: 0.84245 | T194: 0.99695 | U194: 1.4492 | V194: 1.8032
L195: 59.4 | M195: 0.84105 | N195: 0.9956 | O195: 0.8213 | P195: 0.8688 | Q195: 0.8608 | R195: 1.1236 | S195: 0.84105 | T195: 0.9956 | U195: 1.4456 | V195: 1.8006
L196: 59.5 | M196: 0.83965 | N196: 0.99425 | O196: 0.8199 | P196: 0.8676 | Q196: 0.8594 | R196: 1.1221 | S196: 0.83965 | T196: 0.99425 | U196: 1.442 | V196: 1.7978
L197: 59.6 | M197: 0.8383 | N197: 0.99295 | O197: 0.8185 | P197: 0.8664 | Q197: 0.8581 | R197: 1.1207 | S197: 0.8383 | T197: 0.99295 | U197: 1.438 | V197: 1.795
L198: 59.7 | M198: 0.8369 | N198: 0.9916 | O198: 0.817 | P198: 0.8653 | Q198: 0.8568 | R198: 1.1192 | S198: 0.8369 | T198: 0.9916 | U198: 1.434 | V198: 1.7926
L199: 59.8 | M199: 0.83555 | N199: 0.9903 | O199: 0.8156 | P199: 0.864 | Q199: 0.8555 | R199: 1.1178 | S199: 0.83555 | T199: 0.9903 | U199: 1.4302 | V199: 1.7902
L200: 59.9 | M200: 0.8414 | N200: 0.9889 | O200: 0.8286 | P200: 0.8628 | Q200: 0.8542 | R200: 1.1163 | S200: 0.8414 | T200: 0.9889 | U200: 1.4266 | V200: 1.7878
... 1710 more rows

Sheet Push-Pull

Sheet PrintSheet
C1: =Setup!K2 -> Date | D1: =Setup!C2 -> Contest Name
A2: Sort data | B2: Flt B | C2: Name | D2: Age | E2: Div | F2: =Lifting!F8 -> BWt (Kg) | G2: =Lifting!G8 -> WtCls (Kg) | H2: =Lifting!H8 -> Glossbrenner | I2: Lot # | J2: RH Sq | K2: Squat 1 | L2: Squat 2 | M2: Squat 3 | N2: Squat 4 | O2: Best Squat | P2: RH BP | Q2: Bench 1 | R2: Bench 2 | S2: Bench 3 | T2: Bench 4 | U2: Best Bench | V2: Sub Total | W2: Deadlift 1 | X2: Deadlift 2 | Y2: Deadlift 3 | Z2: Deadlift 4 | AA2: Best Deadlift | AB2: =Lifting!AB8 -> PL Total | AC2: Coeff Score | AD2: Age & Coeff | AE2: Place code | AF2: Pl-Div-WtCl | AG2: Team Pts | AH2: Team | AI2: Events

Sheet Awards
J2: =Setup!C2 -> Contest Name
L3: contest logo here
A5: Abbrev | B5: Division
A6: =OFFSET(Setup!O6,MATCH(J6,INDIRECT(B6),0),0) ->  | B6: =CONCATENATE("Setup!P7:P",COUNTA(Setup!O:O)+4) -> Setup!P7:P247 | J6: Female open
A7: WtCls | B7: =IF(LEFT(A6,1)="M","Setup!K9:K23","Setup!M9:M23") ->  | J7: 181 | K7: =IF(J7="SHW","Class",IF(Setup!K6="BWt (Kg)","Kilo Class","Pound Class")) -> Kilo Class | L7: PL Total
B9: =OFFSET(Setup!Q6,MATCH(J6,INDIRECT(B6),0),0) ->  | J9: Place | K9: Name | L9: Best Squat | M9: Best Bench | N9: Best Deadlift | O9: PL Total | P9: =IF(B9=1,"","Coeff-Score") -> 
B10: =CONCATENATE(J10,"-",$A$6,IF($B$9=1,CONCATENATE("-",IF($J$7="SHW",$J$7,ROUND($J$7,1))),"")) ->  | J10: 1 | K10: =IF(ISERROR(INDIRECT(CONCATENATE("Lifting!C",MATCH(B10,Lifting!$AF:$AF,0)))),"",INDIRECT(CONCATENATE("Lifting!C",MATCH(B10,Lifting!$AF:$AF,0)))) ->  | L10: =IF(OR($L$7="Best Bench",$L$7="Best Deadlift",$L$7="Push Pull Total"),"",IF(K10="","",INDIRECT(CONCATENATE("Lifting!O",MATCH(B10,Lifting!$AF:$AF,0))))) ->  | M10: =IF(OR($L$7="Best Squat",$L$7="Best Deadlift"),"",IF(K10="","",INDIRECT(CONCATENATE("Lifting!U",MATCH(B10,Lifting!$AF:$AF,0))))) ->  | N10: =IF(OR($L$7="Best Bench",$L$7="Best Squat"),"",IF(K10="","",INDIRECT(CONCATENATE("Lifting!AA",MATCH(B10,Lifting!$AF:$AF,0))))) ->  | O10: =IF(OR($L$7="Best Bench",$L$7="Best Deadlift",$L$7="Best Deadlift"),"",IF(K10="","",INDIRECT(CONCATENATE("Lifting!AB",MATCH(B10,Lifting!$AF:$AF,0))))) ->  | P10: =IF(OR($B$9=1,K10=""),"",INDIRECT(CONCATENATE(CONCATENATE("Lifting!",IF($B$9=2,"AC","AD"),MATCH(B10,Lifting!$AF:$AF,0))))) -> 
B11: =CONCATENATE(J11,"-",$A$6,IF($B$9=1,CONCATENATE("-",IF($J$7="SHW",$J$7,ROUND($J$7,1))),"")) ->  | J11: 2 | K11: =IF(ISERROR(INDIRECT(CONCATENATE("Lifting!C",MATCH(B11,Lifting!$AF:$AF,0)))),"",INDIRECT(CONCATENATE("Lifting!C",MATCH(B11,Lifting!$AF:$AF,0)))) ->  | L11: =IF(OR($L$7="Best Bench",$L$7="Best Deadlift",$L$7="Push Pull Total"),"",IF(K11="","",INDIRECT(CONCATENATE("Lifting!O",MATCH(B11,Lifting!$AF:$AF,0))))) ->  | M11: =IF(OR($L$7="Best Squat",$L$7="Best Deadlift"),"",IF(K11="","",INDIRECT(CONCATENATE("Lifting!U",MATCH(B11,Lifting!$AF:$AF,0))))) ->  | N11: =IF(OR($L$7="Best Bench",$L$7="Best Squat"),"",IF(K11="","",INDIRECT(CONCATENATE("Lifting!AA",MATCH(B11,Lifting!$AF:$AF,0))))) ->  | O11: =IF(OR($L$7="Best Bench",$L$7="Best Deadlift",$L$7="Best Deadlift"),"",IF(K11="","",INDIRECT(CONCATENATE("Lifting!AB",MATCH(B11,Lifting!$AF:$AF,0))))) ->  | P11: =IF(OR($B$9=1,K11=""),"",INDIRECT(CONCATENATE(CONCATENATE("Lifting!",IF($B$9=2,"AC","AD"),MATCH(B11,Lifting!$AF:$AF,0))))) -> 
B12: =CONCATENATE(J12,"-",$A$6,IF($B$9=1,CONCATENATE("-",IF($J$7="SHW",$J$7,ROUND($J$7,1))),"")) ->  | J12: 3 | K12: =IF(ISERROR(INDIRECT(CONCATENATE("Lifting!C",MATCH(B12,Lifting!$AF:$AF,0)))),"",INDIRECT(CONCATENATE("Lifting!C",MATCH(B12,Lifting!$AF:$AF,0)))) ->  | L12: =IF(OR($L$7="Best Bench",$L$7="Best Deadlift",$L$7="Push Pull Total"),"",IF(K12="","",INDIRECT(CONCATENATE("Lifting!O",MATCH(B12,Lifting!$AF:$AF,0))))) ->  | M12: =IF(OR($L$7="Best Squat",$L$7="Best Deadlift"),"",IF(K12="","",INDIRECT(CONCATENATE("Lifting!U",MATCH(B12,Lifting!$AF:$AF,0))))) ->  | N12: =IF(OR($L$7="Best Bench",$L$7="Best Squat"),"",IF(K12="","",INDIRECT(CONCATENATE("Lifting!AA",MATCH(B12,Lifting!$AF:$AF,0))))) ->  | O12: =IF(OR($L$7="Best Bench",$L$7="Best Deadlift",$L$7="Best Deadlift"),"",IF(K12="","",INDIRECT(CONCATENATE("Lifting!AB",MATCH(B12,Lifting!$AF:$AF,0))))) ->  | P12: =IF(OR($B$9=1,K12=""),"",INDIRECT(CONCATENATE(CONCATENATE("Lifting!",IF($B$9=2,"AC","AD"),MATCH(B12,Lifting!$AF:$AF,0))))) -> 
B13: =CONCATENATE(J13,"-",$A$6,IF($B$9=1,CONCATENATE("-",IF($J$7="SHW",$J$7,ROUND($J$7,1))),"")) ->  | J13: 4 | K13: =IF(ISERROR(INDIRECT(CONCATENATE("Lifting!C",MATCH(B13,Lifting!$AF:$AF,0)))),"",INDIRECT(CONCATENATE("Lifting!C",MATCH(B13,Lifting!$AF:$AF,0)))) ->  | L13: =IF(OR($L$7="Best Bench",$L$7="Best Deadlift",$L$7="Push Pull Total"),"",IF(K13="","",INDIRECT(CONCATENATE("Lifting!O",MATCH(B13,Lifting!$AF:$AF,0))))) ->  | M13: =IF(OR($L$7="Best Squat",$L$7="Best Deadlift"),"",IF(K13="","",INDIRECT(CONCATENATE("Lifting!U",MATCH(B13,Lifting!$AF:$AF,0))))) ->  | N13: =IF(OR($L$7="Best Bench",$L$7="Best Squat"),"",IF(K13="","",INDIRECT(CONCATENATE("Lifting!AA",MATCH(B13,Lifting!$AF:$AF,0))))) ->  | O13: =IF(OR($L$7="Best Bench",$L$7="Best Deadlift",$L$7="Best Deadlift"),"",IF(K13="","",INDIRECT(CONCATENATE("Lifting!AB",MATCH(B13,Lifting!$AF:$AF,0))))) ->  | P13: =IF(OR($B$9=1,K13=""),"",INDIRECT(CONCATENATE(CONCATENATE("Lifting!",IF($B$9=2,"AC","AD"),MATCH(B13,Lifting!$AF:$AF,0))))) -> 
B14: =CONCATENATE(J14,"-",$A$6,IF($B$9=1,CONCATENATE("-",IF($J$7="SHW",$J$7,ROUND($J$7,1))),"")) ->  | J14: 5 | K14: =IF(ISERROR(INDIRECT(CONCATENATE("Lifting!C",MATCH(B14,Lifting!$AF:$AF,0)))),"",INDIRECT(CONCATENATE("Lifting!C",MATCH(B14,Lifting!$AF:$AF,0)))) ->  | L14: =IF(OR($L$7="Best Bench",$L$7="Best Deadlift",$L$7="Push Pull Total"),"",IF(K14="","",INDIRECT(CONCATENATE("Lifting!O",MATCH(B14,Lifting!$AF:$AF,0))))) ->  | M14: =IF(OR($L$7="Best Squat",$L$7="Best Deadlift"),"",IF(K14="","",INDIRECT(CONCATENATE("Lifting!U",MATCH(B14,Lifting!$AF:$AF,0))))) ->  | N14: =IF(OR($L$7="Best Bench",$L$7="Best Squat"),"",IF(K14="","",INDIRECT(CONCATENATE("Lifting!AA",MATCH(B14,Lifting!$AF:$AF,0))))) ->  | O14: =IF(OR($L$7="Best Bench",$L$7="Best Deadlift",$L$7="Best Deadlift"),"",IF(K14="","",INDIRECT(CONCATENATE("Lifting!AB",MATCH(B14,Lifting!$AF:$AF,0))))) ->  | P14: =IF(OR($B$9=1,K14=""),"",INDIRECT(CONCATENATE(CONCATENATE("Lifting!",IF($B$9=2,"AC","AD"),MATCH(B14,Lifting!$AF:$AF,0))))) -> 

Sheet Please read
B2: This program is free.
B3: Anybody may use, copy or share it and it may be freely distributed.
B4: It is copyrighted because I wouldn't want sombody else to sell it.
B6: All I ask, is if you use the program and you like it that you consider a contribution in my daughter's name to the Little Star Foundation.
B7: You can find them on the web at http://www.littlestar.org/
B9: In January 2002 we lost our 16 year old daughter - Liz Marksteiner - after a 16-month fight with cancer.
B10: She grew up around powerlifting and though Liz never had any desire to lift, she was so proud of my wife and me when we were competing.
B11: When she was old enough she almost always found a way to help out - if she were here she'd be running this program.
B12: The summer before her death she spent a magical week at the foundation's Silver Lining Ranch in the Colorado mountains she loved.
B13: The ranch is a retreat for kids with cancer and it meant so much to her and us.
B15: Best of luck with the program.
B17: Sincerely
B18: Joe Marksteiner
B20: e-mail
B21: home | C21: steinmark@aol.com
B22: work | C22: joe.marksteiner@ae.ge.com
B24: phone
B25: home | C25: 513-755-6878
B26: work | C26: 513-552-2122
B27: cell | C27: 513-477-0775

Sheet Black & White load sheet
A1: Available | B1: 4 | C1: 0 | D1: 0 | E1: 16 | F1: 2 | G1: 2 | H1: 4 | I1: 2 | J1: 2 | K1: Bar & Collars | L1: =K2+B2*B1+C2*C1+D2*D1+E2*E1+F2*F1+G2*G1+H2*H1+I2*I1+J2*J1 -> 632.5
A2: Kilos | B2: =IF($A$2="Kilos",50,110) -> 50 | C2: =IF($A$2="Kilos",45,100) -> 45 | D2: =IF($A$2="Kilos",25,55) -> 25 | E2: =IF($A$2="Kilos",20,45) -> 20 | F2: =IF($A$2="Kilos",15,35) -> 15 | G2: =IF($A$2="Kilos",10,25) -> 10 | H2: =IF($A$2="Kilos",5,10) -> 5 | I2: =IF($A$2="Kilos",2.5,5) -> 2.5 | J2: =IF($A$2="Kilos",1.25,2.5) -> 1.25 | K2: 35 | L2: Index | O2: =IF($A$2="Pounds",P2,Q2) -> 20 | P2: 45 | Q2: 20
A3: Weight | M3: Wt w/o bar | O3: =IF($A$2="Pounds",P3,Q3) -> 22.5 | P3: 50 | Q3: 22.5
A4: =IF(M4+$K$2>$L$1,0,M4+$K$2) -> 35 | B4: =IF(A4=0,0,MIN($B$1/2,INT(M4/(2*$B$2)))) -> 0 | C4: =IF(A4=0,0,MIN($C$1/2,INT(($M4-2*$B4*$B$2)/(2*$C$2)))) -> 0 | D4: =IF(A4=0,0,MIN($D$1/2,INT(($M4-2*$B4*$B$2-2*$C4*$C$2)/(2*$D$2)))) -> 0 | E4: =IF(A4=0,0,MIN($E$1/2,INT(($M4-2*$B4*$B$2-2*$C4*$C$2-2*$D4*$D$2)/(2*$E$2)))) -> 0 | F4: =IF(A4=0,0,MIN($F$1/2,INT(($M4-2*$B4*$B$2-2*$C4*$C$2-2*$D4*$D$2-2*$E4*$E$2)/(2*$F$2)))) -> 0 | G4: =IF(A4=0,0,MIN($G$1/2,INT(($M4-2*$B4*$B$2-2*$C4*$C$2-2*$D4*$D$2-2*$E4*$E$2-2*$F4*$F$2)/(2*$G$2)))) -> 0 | H4: =IF(A4=0,0,MIN($H$1/2,INT(($M4-2*$B4*$B$2-2*$C4*$C$2-2*$D4*$D$2-2*$E4*$E$2-2*$F4*$F$2-2*$G4*$G$2)/(2*$H$2)))) -> 0 | I4: =IF(A4=0,0,MIN($I$1/2,INT(($M4-2*$B4*$B$2-2*$C4*$C$2-2*$D4*$D$2-2*$E4*$E$2-2*$F4*$F$2-2*$G4*$G$2-2*$H4*$H$2)/(2*$I$2)))) -> 0 | J4: =IF(A4=0,0,MIN($J$1/2,INT(($M4-2*$B4*$B$2-2*$C4*$C$2-2*$D4*$D$2-2*$E4*$E$2-2*$F4*$F$2-2*$G4*$G$2-2*$H4*$H$2-2*$I4*$I$2)/(2*$J$2)))) -> 0 | L4: 0 | M4: 0 | N4: =IF($K$2+2*(B4*$B$2+C4*$C$2+D4*$D$2+E4*$E$2+F4*$F$2+G4*$G$2+H4*$H$2+I4*$I$2+J4*$J$2)=A4,"","Not enough weight for this load") ->  | O4: =IF($A$2="Pounds",P4,Q4) -> 25 | P4: 55 | Q4: 25
A5: =IF(M5+$K$2>$L$1,0,M5+$K$2) -> 37.5 | B5: =IF(A5=0,0,MIN($B$1/2,INT(M5/(2*$B$2)))) -> 0 | C5: =IF(A5=0,0,MIN($C$1/2,INT(($M5-2*$B5*$B$2)/(2*$C$2)))) -> 0 | D5: =IF(A5=0,0,MIN($D$1/2,INT(($M5-2*$B5*$B$2-2*$C5*$C$2)/(2*$D$2)))) -> 0 | E5: =IF(A5=0,0,MIN($E$1/2,INT(($M5-2*$B5*$B$2-2*$C5*$C$2-2*$D5*$D$2)/(2*$E$2)))) -> 0 | F5: =IF(A5=0,0,MIN($F$1/2,INT(($M5-2*$B5*$B$2-2*$C5*$C$2-2*$D5*$D$2-2*$E5*$E$2)/(2*$F$2)))) -> 0 | G5: =IF(A5=0,0,MIN($G$1/2,INT(($M5-2*$B5*$B$2-2*$C5*$C$2-2*$D5*$D$2-2*$E5*$E$2-2*$F5*$F$2)/(2*$G$2)))) -> 0 | H5: =IF(A5=0,0,MIN($H$1/2,INT(($M5-2*$B5*$B$2-2*$C5*$C$2-2*$D5*$D$2-2*$E5*$E$2-2*$F5*$F$2-2*$G5*$G$2)/(2*$H$2)))) -> 0 | I5: =IF(A5=0,0,MIN($I$1/2,INT(($M5-2*$B5*$B$2-2*$C5*$C$2-2*$D5*$D$2-2*$E5*$E$2-2*$F5*$F$2-2*$G5*$G$2-2*$H5*$H$2)/(2*$I$2)))) -> 0 | J5: =IF(A5=0,0,MIN($J$1/2,INT(($M5-2*$B5*$B$2-2*$C5*$C$2-2*$D5*$D$2-2*$E5*$E$2-2*$F5*$F$2-2*$G5*$G$2-2*$H5*$H$2-2*$I5*$I$2)/(2*$J$2)))) -> 1 | L5: 1 | M5: =IF($A$2="Pounds",5*L5,2.5*L5) -> 2.5 | O5: =IF($A$2="Pounds",P5,Q5) -> 30 | P5: 65 | Q5: 30
A6: 40 | B6: 0 | C6: 0 | D6: 0 | E6: 0 | F6: 0 | G6: 0 | H6: 0 | I6: 1 | J6: 0 | L6: 2 | M6: 5 | O6: =IF($A$2="Pounds",P6,Q6) -> 32.5 | P6: 70 | Q6: 32.5
A7: 42.5 | B7: 0 | C7: 0 | D7: 0 | E7: 0 | F7: 0 | G7: 0 | H7: 0 | I7: 1 | J7: 1 | L7: 3 | M7: 7.5 | O7: 35 | P7: 75 | Q7: 35
A8: 45 | B8: 0 | C8: 0 | D8: 0 | E8: 0 | F8: 0 | G8: 0 | H8: 1 | I8: 0 | J8: 0 | L8: 4 | M8: 10
A9: 47.5 | B9: 0 | C9: 0 | D9: 0 | E9: 0 | F9: 0 | G9: 0 | H9: 1 | I9: 0 | J9: 1 | L9: 5 | M9: 12.5
A10: 50 | B10: 0 | C10: 0 | D10: 0 | E10: 0 | F10: 0 | G10: 0 | H10: 1 | I10: 1 | J10: 0 | L10: 6 | M10: 15
A11: 52.5 | B11: 0 | C11: 0 | D11: 0 | E11: 0 | F11: 0 | G11: 0 | H11: 1 | I11: 1 | J11: 1 | L11: 7 | M11: 17.5
A12: 55 | B12: 0 | C12: 0 | D12: 0 | E12: 0 | F12: 0 | G12: 1 | H12: 0 | I12: 0 | J12: 0 | L12: 8 | M12: 20
A13: 57.5 | B13: 0 | C13: 0 | D13: 0 | E13: 0 | F13: 0 | G13: 1 | H13: 0 | I13: 0 | J13: 1 | L13: =L12+1 -> 9 | M13: 22.5
A14: 60 | B14: 0 | C14: 0 | D14: 0 | E14: 0 | F14: 0 | G14: 1 | H14: 0 | I14: 1 | J14: 0 | L14: 10 | M14: 25
A15: 62.5 | B15: 0 | C15: 0 | D15: 0 | E15: 0 | F15: 0 | G15: 1 | H15: 0 | I15: 1 | J15: 1 | L15: 11 | M15: 27.5
A16: 65 | B16: 0 | C16: 0 | D16: 0 | E16: 0 | F16: 1 | G16: 0 | H16: 0 | I16: 0 | J16: 0 | L16: 12 | M16: 30
A17: 67.5 | B17: 0 | C17: 0 | D17: 0 | E17: 0 | F17: 1 | G17: 0 | H17: 0 | I17: 0 | J17: 1 | L17: 13 | M17: 32.5
A18: 70 | B18: 0 | C18: 0 | D18: 0 | E18: 0 | F18: 1 | G18: 0 | H18: 0 | I18: 1 | J18: 0 | L18: 14 | M18: 35
A19: 72.5 | B19: 0 | C19: 0 | D19: 0 | E19: 0 | F19: 1 | G19: 0 | H19: 0 | I19: 1 | J19: 1 | L19: 15 | M19: 37.5
A20: 75 | B20: 0 | C20: 0 | D20: 0 | E20: 1 | F20: 0 | G20: 0 | H20: 0 | I20: 0 | J20: 0 | L20: 16 | M20: 40
A21: 77.5 | B21: 0 | C21: 0 | D21: 0 | E21: 1 | F21: 0 | G21: 0 | H21: 0 | I21: 0 | J21: 1 | L21: 17 | M21: 42.5
A22: 80 | B22: 0 | C22: 0 | D22: 0 | E22: 1 | F22: 0 | G22: 0 | H22: 0 | I22: 1 | J22: 0 | L22: 18 | M22: 45
A23: 82.5 | B23: 0 | C23: 0 | D23: 0 | E23: 1 | F23: 0 | G23: 0 | H23: 0 | I23: 1 | J23: 1 | L23: 19 | M23: 47.5
A24: 85 | B24: 0 | C24: 0 | D24: 0 | E24: 1 | F24: 0 | G24: 0 | H24: 1 | I24: 0 | J24: 0 | L24: 20 | M24: 50
A25: 87.5 | B25: 0 | C25: 0 | D25: 0 | E25: 1 | F25: 0 | G25: 0 | H25: 1 | I25: 0 | J25: 1 | L25: 21 | M25: 52.5
A26: 90 | B26: 0 | C26: 0 | D26: 0 | E26: 1 | F26: 0 | G26: 0 | H26: 1 | I26: 1 | J26: 0 | L26: 22 | M26: 55
A27: 92.5 | B27: 0 | C27: 0 | D27: 0 | E27: 1 | F27: 0 | G27: 0 | H27: 1 | I27: 1 | J27: 1 | L27: 23 | M27: 57.5
A28: 95 | B28: 0 | C28: 0 | D28: 0 | E28: 1 | F28: 0 | G28: 1 | H28: 0 | I28: 0 | J28: 0 | L28: 24 | M28: 60
A29: 97.5 | B29: 0 | C29: 0 | D29: 0 | E29: 1 | F29: 0 | G29: 1 | H29: 0 | I29: 0 | J29: 1 | L29: 25 | M29: 62.5
A30: 100 | B30: 0 | C30: 0 | D30: 0 | E30: 1 | F30: 0 | G30: 1 | H30: 0 | I30: 1 | J30: 0 | L30: 26 | M30: 65
A31: 102.5 | B31: 0 | C31: 0 | D31: 0 | E31: 1 | F31: 0 | G31: 1 | H31: 0 | I31: 1 | J31: 1 | L31: 27 | M31: 67.5
A32: 105 | B32: 0 | C32: 0 | D32: 0 | E32: 1 | F32: 1 | G32: 0 | H32: 0 | I32: 0 | J32: 0 | L32: 28 | M32: 70
A33: 107.5 | B33: 0 | C33: 0 | D33: 0 | E33: 1 | F33: 1 | G33: 0 | H33: 0 | I33: 0 | J33: 1 | L33: 29 | M33: 72.5
A34: 110 | B34: 0 | C34: 0 | D34: 0 | E34: 1 | F34: 1 | G34: 0 | H34: 0 | I34: 1 | J34: 0 | L34: 30 | M34: 75
A35: 112.5 | B35: 0 | C35: 0 | D35: 0 | E35: 1 | F35: 1 | G35: 0 | H35: 0 | I35: 1 | J35: 1 | L35: 31 | M35: 77.5
A36: 115 | B36: 0 | C36: 0 | D36: 0 | E36: 2 | F36: 0 | G36: 0 | H36: 0 | I36: 0 | J36: 0 | L36: 32 | M36: 80
A37: 117.5 | B37: 0 | C37: 0 | D37: 0 | E37: 2 | F37: 0 | G37: 0 | H37: 0 | I37: 0 | J37: 1 | L37: 33 | M37: 82.5
A38: 120 | B38: 0 | C38: 0 | D38: 0 | E38: 2 | F38: 0 | G38: 0 | H38: 0 | I38: 1 | J38: 0 | L38: 34 | M38: 85
A39: 122.5 | B39: 0 | C39: 0 | D39: 0 | E39: 2 | F39: 0 | G39: 0 | H39: 0 | I39: 1 | J39: 1 | L39: 35 | M39: 87.5
A40: 125 | B40: 0 | C40: 0 | D40: 0 | E40: 2 | F40: 0 | G40: 0 | H40: 1 | I40: 0 | J40: 0 | L40: 36 | M40: 90
A41: 127.5 | B41: 0 | C41: 0 | D41: 0 | E41: 2 | F41: 0 | G41: 0 | H41: 1 | I41: 0 | J41: 1 | L41: 37 | M41: 92.5
A42: 130 | B42: 0 | C42: 0 | D42: 0 | E42: 2 | F42: 0 | G42: 0 | H42: 1 | I42: 1 | J42: 0 | L42: 38 | M42: 95
A43: 132.5 | B43: 0 | C43: 0 | D43: 0 | E43: 2 | F43: 0 | G43: 0 | H43: 1 | I43: 1 | J43: 1 | L43: 39 | M43: 97.5
A44: 135 | B44: 1 | C44: 0 | D44: 0 | E44: 0 | F44: 0 | G44: 0 | H44: 0 | I44: 0 | J44: 0 | L44: 40 | M44: 100
A45: 137.5 | B45: 1 | C45: 0 | D45: 0 | E45: 0 | F45: 0 | G45: 0 | H45: 0 | I45: 0 | J45: 1 | L45: 41 | M45: 102.5
A46: 140 | B46: 1 | C46: 0 | D46: 0 | E46: 0 | F46: 0 | G46: 0 | H46: 0 | I46: 1 | J46: 0 | L46: 42 | M46: 105
A47: 142.5 | B47: 1 | C47: 0 | D47: 0 | E47: 0 | F47: 0 | G47: 0 | H47: 0 | I47: 1 | J47: 1 | L47: 43 | M47: 107.5
A48: 145 | B48: 1 | C48: 0 | D48: 0 | E48: 0 | F48: 0 | G48: 0 | H48: 1 | I48: 0 | J48: 0 | L48: 44 | M48: 110
A49: 147.5 | B49: 1 | C49: 0 | D49: 0 | E49: 0 | F49: 0 | G49: 0 | H49: 1 | I49: 0 | J49: 1 | L49: 45 | M49: 112.5
A50: 150 | B50: 1 | C50: 0 | D50: 0 | E50: 0 | F50: 0 | G50: 0 | H50: 1 | I50: 1 | J50: 0 | L50: 46 | M50: 115
A51: 152.5 | B51: 1 | C51: 0 | D51: 0 | E51: 0 | F51: 0 | G51: 0 | H51: 1 | I51: 1 | J51: 1 | L51: 47 | M51: 117.5
A52: 155 | B52: 1 | C52: 0 | D52: 0 | E52: 0 | F52: 0 | G52: 1 | H52: 0 | I52: 0 | J52: 0 | L52: 48 | M52: 120
A53: 157.5 | B53: 1 | C53: 0 | D53: 0 | E53: 0 | F53: 0 | G53: 1 | H53: 0 | I53: 0 | J53: 1 | L53: 49 | M53: 122.5
A54: 160 | B54: 1 | C54: 0 | D54: 0 | E54: 0 | F54: 0 | G54: 1 | H54: 0 | I54: 1 | J54: 0 | L54: 50 | M54: 125
A55: 162.5 | B55: 1 | C55: 0 | D55: 0 | E55: 0 | F55: 0 | G55: 1 | H55: 0 | I55: 1 | J55: 1 | L55: 51 | M55: 127.5
A56: 165 | B56: 1 | C56: 0 | D56: 0 | E56: 0 | F56: 1 | G56: 0 | H56: 0 | I56: 0 | J56: 0 | L56: 52 | M56: 130
A57: 167.5 | B57: 1 | C57: 0 | D57: 0 | E57: 0 | F57: 1 | G57: 0 | H57: 0 | I57: 0 | J57: 1 | L57: 53 | M57: 132.5
A58: 170 | B58: 1 | C58: 0 | D58: 0 | E58: 0 | F58: 1 | G58: 0 | H58: 0 | I58: 1 | J58: 0 | L58: 54 | M58: 135
A59: 172.5 | B59: 1 | C59: 0 | D59: 0 | E59: 0 | F59: 1 | G59: 0 | H59: 0 | I59: 1 | J59: 1 | L59: 55 | M59: 137.5
A60: 175 | B60: 1 | C60: 0 | D60: 0 | E60: 1 | F60: 0 | G60: 0 | H60: 0 | I60: 0 | J60: 0 | L60: 56 | M60: 140
A61: 177.5 | B61: 1 | C61: 0 | D61: 0 | E61: 1 | F61: 0 | G61: 0 | H61: 0 | I61: 0 | J61: 1 | L61: 57 | M61: 142.5
A62: 180 | B62: 1 | C62: 0 | D62: 0 | E62: 1 | F62: 0 | G62: 0 | H62: 0 | I62: 1 | J62: 0 | L62: 58 | M62: 145
A63: 182.5 | B63: 1 | C63: 0 | D63: 0 | E63: 1 | F63: 0 | G63: 0 | H63: 0 | I63: 1 | J63: 1 | L63: 59 | M63: 147.5
A64: 185 | B64: 1 | C64: 0 | D64: 0 | E64: 1 | F64: 0 | G64: 0 | H64: 1 | I64: 0 | J64: 0 | L64: 60 | M64: 150
A65: 187.5 | B65: 1 | C65: 0 | D65: 0 | E65: 1 | F65: 0 | G65: 0 | H65: 1 | I65: 0 | J65: 1 | L65: 61 | M65: 152.5
A66: 190 | B66: 1 | C66: 0 | D66: 0 | E66: 1 | F66: 0 | G66: 0 | H66: 1 | I66: 1 | J66: 0 | L66: 62 | M66: 155
A67: 192.5 | B67: 1 | C67: 0 | D67: 0 | E67: 1 | F67: 0 | G67: 0 | H67: 1 | I67: 1 | J67: 1 | L67: 63 | M67: 157.5
A68: 195 | B68: 1 | C68: 0 | D68: 0 | E68: 1 | F68: 0 | G68: 1 | H68: 0 | I68: 0 | J68: 0 | L68: 64 | M68: 160
A69: =IF(M69+$K$2>$L$1,0,M69+$K$2) -> 197.5 | B69: =IF(A69=0,0,MIN($B$1/2,INT(M69/(2*$B$2)))) -> 1 | C69: =IF(A69=0,0,MIN($C$1/2,INT(($M69-2*$B69*$B$2)/(2*$C$2)))) -> 0 | D69: =IF(A69=0,0,MIN($D$1/2,INT(($M69-2*$B69*$B$2-2*$C69*$C$2)/(2*$D$2)))) -> 0 | E69: =IF(A69=0,0,MIN($E$1/2,INT(($M69-2*$B69*$B$2-2*$C69*$C$2-2*$D69*$D$2)/(2*$E$2)))) -> 1 | F69: =IF(A69=0,0,MIN($F$1/2,INT(($M69-2*$B69*$B$2-2*$C69*$C$2-2*$D69*$D$2-2*$E69*$E$2)/(2*$F$2)))) -> 0 | G69: =IF(A69=0,0,MIN($G$1/2,INT(($M69-2*$B69*$B$2-2*$C69*$C$2-2*$D69*$D$2-2*$E69*$E$2-2*$F69*$F$2)/(2*$G$2)))) -> 1 | H69: =IF(A69=0,0,MIN($H$1/2,INT(($M69-2*$B69*$B$2-2*$C69*$C$2-2*$D69*$D$2-2*$E69*$E$2-2*$F69*$F$2-2*$G69*$G$2)/(2*$H$2)))) -> 0 | I69: =IF(A69=0,0,MIN($I$1/2,INT(($M69-2*$B69*$B$2-2*$C69*$C$2-2*$D69*$D$2-2*$E69*$E$2-2*$F69*$F$2-2*$G69*$G$2-2*$H69*$H$2)/(2*$I$2)))) -> 0 | J69: =IF(A69=0,0,MIN($J$1/2,INT(($M69-2*$B69*$B$2-2*$C69*$C$2-2*$D69*$D$2-2*$E69*$E$2-2*$F69*$F$2-2*$G69*$G$2-2*$H69*$H$2-2*$I69*$I$2)/(2*$J$2)))) -> 1 | L69: 65 | M69: =IF($A$2="Pounds",5*L69,2.5*L69) -> 162.5
A70: 200 | B70: 1 | C70: 0 | D70: 0 | E70: 1 | F70: 0 | G70: 1 | H70: 0 | I70: 1 | J70: 0 | L70: 66 | M70: 165
A71: 202.5 | B71: 1 | C71: 0 | D71: 0 | E71: 1 | F71: 0 | G71: 1 | H71: 0 | I71: 1 | J71: 1 | L71: 67 | M71: 167.5
A72: 205 | B72: 1 | C72: 0 | D72: 0 | E72: 1 | F72: 1 | G72: 0 | H72: 0 | I72: 0 | J72: 0 | L72: 68 | M72: 170
A73: 207.5 | B73: 1 | C73: 0 | D73: 0 | E73: 1 | F73: 1 | G73: 0 | H73: 0 | I73: 0 | J73: 1 | L73: 69 | M73: 172.5
A74: 210 | B74: 1 | C74: 0 | D74: 0 | E74: 1 | F74: 1 | G74: 0 | H74: 0 | I74: 1 | J74: 0 | L74: 70 | M74: 175
A75: 212.5 | B75: 1 | C75: 0 | D75: 0 | E75: 1 | F75: 1 | G75: 0 | H75: 0 | I75: 1 | J75: 1 | L75: 71 | M75: 177.5
A76: 215 | B76: 1 | C76: 0 | D76: 0 | E76: 2 | F76: 0 | G76: 0 | H76: 0 | I76: 0 | J76: 0 | L76: 72 | M76: 180
A77: 217.5 | B77: 1 | C77: 0 | D77: 0 | E77: 2 | F77: 0 | G77: 0 | H77: 0 | I77: 0 | J77: 1 | L77: =L76+1 -> 73 | M77: 182.5
A78: 220 | B78: 1 | C78: 0 | D78: 0 | E78: 2 | F78: 0 | G78: 0 | H78: 0 | I78: 1 | J78: 0 | L78: 74 | M78: 185
A79: 222.5 | B79: 1 | C79: 0 | D79: 0 | E79: 2 | F79: 0 | G79: 0 | H79: 0 | I79: 1 | J79: 1 | L79: 75 | M79: 187.5
A80: 225 | B80: 1 | C80: 0 | D80: 0 | E80: 2 | F80: 0 | G80: 0 | H80: 1 | I80: 0 | J80: 0 | L80: 76 | M80: 190
A81: 227.5 | B81: 1 | C81: 0 | D81: 0 | E81: 2 | F81: 0 | G81: 0 | H81: 1 | I81: 0 | J81: 1 | L81: 77 | M81: 192.5
A82: 230 | B82: 1 | C82: 0 | D82: 0 | E82: 2 | F82: 0 | G82: 0 | H82: 1 | I82: 1 | J82: 0 | L82: 78 | M82: 195
A83: 232.5 | B83: 1 | C83: 0 | D83: 0 | E83: 2 | F83: 0 | G83: 0 | H83: 1 | I83: 1 | J83: 1 | L83: 79 | M83: 197.5
A84: 235 | B84: 2 | C84: 0 | D84: 0 | E84: 0 | F84: 0 | G84: 0 | H84: 0 | I84: 0 | J84: 0 | L84: 80 | M84: 200
A85: 237.5 | B85: 2 | C85: 0 | D85: 0 | E85: 0 | F85: 0 | G85: 0 | H85: 0 | I85: 0 | J85: 1 | L85: 81 | M85: 202.5
A86: 240 | B86: 2 | C86: 0 | D86: 0 | E86: 0 | F86: 0 | G86: 0 | H86: 0 | I86: 1 | J86: 0 | L86: 82 | M86: 205
A87: 242.5 | B87: 2 | C87: 0 | D87: 0 | E87: 0 | F87: 0 | G87: 0 | H87: 0 | I87: 1 | J87: 1 | L87: 83 | M87: 207.5
A88: 245 | B88: 2 | C88: 0 | D88: 0 | E88: 0 | F88: 0 | G88: 0 | H88: 1 | I88: 0 | J88: 0 | L88: 84 | M88: 210
A89: 247.5 | B89: 2 | C89: 0 | D89: 0 | E89: 0 | F89: 0 | G89: 0 | H89: 1 | I89: 0 | J89: 1 | L89: 85 | M89: 212.5
A90: 250 | B90: 2 | C90: 0 | D90: 0 | E90: 0 | F90: 0 | G90: 0 | H90: 1 | I90: 1 | J90: 0 | L90: 86 | M90: 215
A91: 252.5 | B91: 2 | C91: 0 | D91: 0 | E91: 0 | F91: 0 | G91: 0 | H91: 1 | I91: 1 | J91: 1 | L91: 87 | M91: 217.5
A92: 255 | B92: 2 | C92: 0 | D92: 0 | E92: 0 | F92: 0 | G92: 1 | H92: 0 | I92: 0 | J92: 0 | L92: 88 | M92: 220
A93: 257.5 | B93: 2 | C93: 0 | D93: 0 | E93: 0 | F93: 0 | G93: 1 | H93: 0 | I93: 0 | J93: 1 | L93: 89 | M93: 222.5
A94: 260 | B94: 2 | C94: 0 | D94: 0 | E94: 0 | F94: 0 | G94: 1 | H94: 0 | I94: 1 | J94: 0 | L94: 90 | M94: 225
A95: 262.5 | B95: 2 | C95: 0 | D95: 0 | E95: 0 | F95: 0 | G95: 1 | H95: 0 | I95: 1 | J95: 1 | L95: 91 | M95: 227.5
A96: 265 | B96: 2 | C96: 0 | D96: 0 | E96: 0 | F96: 1 | G96: 0 | H96: 0 | I96: 0 | J96: 0 | L96: 92 | M96: 230
A97: 267.5 | B97: 2 | C97: 0 | D97: 0 | E97: 0 | F97: 1 | G97: 0 | H97: 0 | I97: 0 | J97: 1 | L97: 93 | M97: 232.5
A98: 270 | B98: 2 | C98: 0 | D98: 0 | E98: 0 | F98: 1 | G98: 0 | H98: 0 | I98: 1 | J98: 0 | L98: 94 | M98: 235
A99: 272.5 | B99: 2 | C99: 0 | D99: 0 | E99: 0 | F99: 1 | G99: 0 | H99: 0 | I99: 1 | J99: 1 | L99: 95 | M99: 237.5
A100: 275 | B100: 2 | C100: 0 | D100: 0 | E100: 1 | F100: 0 | G100: 0 | H100: 0 | I100: 0 | J100: 0 | L100: 96 | M100: 240
A101: 277.5 | B101: 2 | C101: 0 | D101: 0 | E101: 1 | F101: 0 | G101: 0 | H101: 0 | I101: 0 | J101: 1 | L101: 97 | M101: 242.5
A102: 280 | B102: 2 | C102: 0 | D102: 0 | E102: 1 | F102: 0 | G102: 0 | H102: 0 | I102: 1 | J102: 0 | L102: 98 | M102: 245
A103: 282.5 | B103: 2 | C103: 0 | D103: 0 | E103: 1 | F103: 0 | G103: 0 | H103: 0 | I103: 1 | J103: 1 | L103: 99 | M103: 247.5
A104: 285 | B104: 2 | C104: 0 | D104: 0 | E104: 1 | F104: 0 | G104: 0 | H104: 1 | I104: 0 | J104: 0 | L104: 100 | M104: 250
A105: 287.5 | B105: 2 | C105: 0 | D105: 0 | E105: 1 | F105: 0 | G105: 0 | H105: 1 | I105: 0 | J105: 1 | L105: 101 | M105: 252.5
A106: 290 | B106: 2 | C106: 0 | D106: 0 | E106: 1 | F106: 0 | G106: 0 | H106: 1 | I106: 1 | J106: 0 | L106: 102 | M106: 255
A107: 292.5 | B107: 2 | C107: 0 | D107: 0 | E107: 1 | F107: 0 | G107: 0 | H107: 1 | I107: 1 | J107: 1 | L107: 103 | M107: 257.5
A108: 295 | B108: 2 | C108: 0 | D108: 0 | E108: 1 | F108: 0 | G108: 1 | H108: 0 | I108: 0 | J108: 0 | L108: 104 | M108: 260
A109: 297.5 | B109: 2 | C109: 0 | D109: 0 | E109: 1 | F109: 0 | G109: 1 | H109: 0 | I109: 0 | J109: 1 | L109: 105 | M109: 262.5
A110: 300 | B110: 2 | C110: 0 | D110: 0 | E110: 1 | F110: 0 | G110: 1 | H110: 0 | I110: 1 | J110: 0 | L110: 106 | M110: 265
A111: 302.5 | B111: 2 | C111: 0 | D111: 0 | E111: 1 | F111: 0 | G111: 1 | H111: 0 | I111: 1 | J111: 1 | L111: 107 | M111: 267.5
A112: 305 | B112: 2 | C112: 0 | D112: 0 | E112: 1 | F112: 1 | G112: 0 | H112: 0 | I112: 0 | J112: 0 | L112: 108 | M112: 270
A113: 307.5 | B113: 2 | C113: 0 | D113: 0 | E113: 1 | F113: 1 | G113: 0 | H113: 0 | I113: 0 | J113: 1 | L113: 109 | M113: 272.5
A114: 310 | B114: 2 | C114: 0 | D114: 0 | E114: 1 | F114: 1 | G114: 0 | H114: 0 | I114: 1 | J114: 0 | L114: 110 | M114: 275
A115: 312.5 | B115: 2 | C115: 0 | D115: 0 | E115: 1 | F115: 1 | G115: 0 | H115: 0 | I115: 1 | J115: 1 | L115: 111 | M115: 277.5
A116: 315 | B116: 2 | C116: 0 | D116: 0 | E116: 2 | F116: 0 | G116: 0 | H116: 0 | I116: 0 | J116: 0 | L116: 112 | M116: 280
A117: 317.5 | B117: 2 | C117: 0 | D117: 0 | E117: 2 | F117: 0 | G117: 0 | H117: 0 | I117: 0 | J117: 1 | L117: 113 | M117: 282.5
A118: 320 | B118: 2 | C118: 0 | D118: 0 | E118: 2 | F118: 0 | G118: 0 | H118: 0 | I118: 1 | J118: 0 | L118: 114 | M118: 285
A119: 322.5 | B119: 2 | C119: 0 | D119: 0 | E119: 2 | F119: 0 | G119: 0 | H119: 0 | I119: 1 | J119: 1 | L119: 115 | M119: 287.5
A120: 325 | B120: 2 | C120: 0 | D120: 0 | E120: 2 | F120: 0 | G120: 0 | H120: 1 | I120: 0 | J120: 0 | L120: 116 | M120: 290
A121: 327.5 | B121: 2 | C121: 0 | D121: 0 | E121: 2 | F121: 0 | G121: 0 | H121: 1 | I121: 0 | J121: 1 | L121: 117 | M121: 292.5
A122: 330 | B122: 2 | C122: 0 | D122: 0 | E122: 2 | F122: 0 | G122: 0 | H122: 1 | I122: 1 | J122: 0 | L122: 118 | M122: 295
A123: 332.5 | B123: 2 | C123: 0 | D123: 0 | E123: 2 | F123: 0 | G123: 0 | H123: 1 | I123: 1 | J123: 1 | L123: 119 | M123: 297.5
A124: 335 | B124: 2 | C124: 0 | D124: 0 | E124: 2 | F124: 0 | G124: 1 | H124: 0 | I124: 0 | J124: 0 | L124: 120 | M124: 300
A125: 337.5 | B125: 2 | C125: 0 | D125: 0 | E125: 2 | F125: 0 | G125: 1 | H125: 0 | I125: 0 | J125: 1 | L125: 121 | M125: 302.5
A126: 340 | B126: 2 | C126: 0 | D126: 0 | E126: 2 | F126: 0 | G126: 1 | H126: 0 | I126: 1 | J126: 0 | L126: 122 | M126: 305
A127: 342.5 | B127: 2 | C127: 0 | D127: 0 | E127: 2 | F127: 0 | G127: 1 | H127: 0 | I127: 1 | J127: 1 | L127: 123 | M127: 307.5
A128: 345 | B128: 2 | C128: 0 | D128: 0 | E128: 2 | F128: 1 | G128: 0 | H128: 0 | I128: 0 | J128: 0 | L128: 124 | M128: 310
A129: 347.5 | B129: 2 | C129: 0 | D129: 0 | E129: 2 | F129: 1 | G129: 0 | H129: 0 | I129: 0 | J129: 1 | L129: 125 | M129: 312.5
A130: 350 | B130: 2 | C130: 0 | D130: 0 | E130: 2 | F130: 1 | G130: 0 | H130: 0 | I130: 1 | J130: 0 | L130: 126 | M130: 315
A131: 352.5 | B131: 2 | C131: 0 | D131: 0 | E131: 2 | F131: 1 | G131: 0 | H131: 0 | I131: 1 | J131: 1 | L131: 127 | M131: 317.5
A132: 355 | B132: 2 | C132: 0 | D132: 0 | E132: 3 | F132: 0 | G132: 0 | H132: 0 | I132: 0 | J132: 0 | L132: 128 | M132: 320
A133: =IF(M133+$K$2>$L$1,0,M133+$K$2) -> 357.5 | B133: =IF(A133=0,0,MIN($B$1/2,INT(M133/(2*$B$2)))) -> 2 | C133: =IF(A133=0,0,MIN($C$1/2,INT(($M133-2*$B133*$B$2)/(2*$C$2)))) -> 0 | D133: =IF(A133=0,0,MIN($D$1/2,INT(($M133-2*$B133*$B$2-2*$C133*$C$2)/(2*$D$2)))) -> 0 | E133: =IF(A133=0,0,MIN($E$1/2,INT(($M133-2*$B133*$B$2-2*$C133*$C$2-2*$D133*$D$2)/(2*$E$2)))) -> 3 | F133: =IF(A133=0,0,MIN($F$1/2,INT(($M133-2*$B133*$B$2-2*$C133*$C$2-2*$D133*$D$2-2*$E133*$E$2)/(2*$F$2)))) -> 0 | G133: =IF(A133=0,0,MIN($G$1/2,INT(($M133-2*$B133*$B$2-2*$C133*$C$2-2*$D133*$D$2-2*$E133*$E$2-2*$F133*$F$2)/(2*$G$2)))) -> 0 | H133: =IF(A133=0,0,MIN($H$1/2,INT(($M133-2*$B133*$B$2-2*$C133*$C$2-2*$D133*$D$2-2*$E133*$E$2-2*$F133*$F$2-2*$G133*$G$2)/(2*$H$2)))) -> 0 | I133: =IF(A133=0,0,MIN($I$1/2,INT(($M133-2*$B133*$B$2-2*$C133*$C$2-2*$D133*$D$2-2*$E133*$E$2-2*$F133*$F$2-2*$G133*$G$2-2*$H133*$H$2)/(2*$I$2)))) -> 0 | J133: =IF(A133=0,0,MIN($J$1/2,INT(($M133-2*$B133*$B$2-2*$C133*$C$2-2*$D133*$D$2-2*$E133*$E$2-2*$F133*$F$2-2*$G133*$G$2-2*$H133*$H$2-2*$I133*$I$2)/(2*$J$2)))) -> 1 | L133: 129 | M133: =IF($A$2="Pounds",5*L133,2.5*L133) -> 322.5
A134: 360 | B134: 2 | C134: 0 | D134: 0 | E134: 3 | F134: 0 | G134: 0 | H134: 0 | I134: 1 | J134: 0 | L134: 130 | M134: 325
A135: 362.5 | B135: 2 | C135: 0 | D135: 0 | E135: 3 | F135: 0 | G135: 0 | H135: 0 | I135: 1 | J135: 1 | L135: 131 | M135: 327.5
A136: 365 | B136: 2 | C136: 0 | D136: 0 | E136: 3 | F136: 0 | G136: 0 | H136: 1 | I136: 0 | J136: 0 | L136: 132 | M136: 330
A137: 367.5 | B137: 2 | C137: 0 | D137: 0 | E137: 3 | F137: 0 | G137: 0 | H137: 1 | I137: 0 | J137: 1 | L137: 133 | M137: 332.5
A138: 370 | B138: 2 | C138: 0 | D138: 0 | E138: 3 | F138: 0 | G138: 0 | H138: 1 | I138: 1 | J138: 0 | L138: 134 | M138: 335
A139: 372.5 | B139: 2 | C139: 0 | D139: 0 | E139: 3 | F139: 0 | G139: 0 | H139: 1 | I139: 1 | J139: 1 | L139: 135 | M139: 337.5
A140: 375 | B140: 2 | C140: 0 | D140: 0 | E140: 3 | F140: 0 | G140: 1 | H140: 0 | I140: 0 | J140: 0 | L140: 136 | M140: 340
A141: 377.5 | B141: 2 | C141: 0 | D141: 0 | E141: 3 | F141: 0 | G141: 1 | H141: 0 | I141: 0 | J141: 1 | L141: =L140+1 -> 137 | M141: 342.5
A142: 380 | B142: 2 | C142: 0 | D142: 0 | E142: 3 | F142: 0 | G142: 1 | H142: 0 | I142: 1 | J142: 0 | L142: 138 | M142: 345
A143: 382.5 | B143: 2 | C143: 0 | D143: 0 | E143: 3 | F143: 0 | G143: 1 | H143: 0 | I143: 1 | J143: 1 | L143: 139 | M143: 347.5
A144: 385 | B144: 2 | C144: 0 | D144: 0 | E144: 3 | F144: 1 | G144: 0 | H144: 0 | I144: 0 | J144: 0 | L144: 140 | M144: 350
A145: 387.5 | B145: 2 | C145: 0 | D145: 0 | E145: 3 | F145: 1 | G145: 0 | H145: 0 | I145: 0 | J145: 1 | L145: 141 | M145: 352.5
A146: 390 | B146: 2 | C146: 0 | D146: 0 | E146: 3 | F146: 1 | G146: 0 | H146: 0 | I146: 1 | J146: 0 | L146: 142 | M146: 355
A147: 392.5 | B147: 2 | C147: 0 | D147: 0 | E147: 3 | F147: 1 | G147: 0 | H147: 0 | I147: 1 | J147: 1 | L147: 143 | M147: 357.5
A148: 395 | B148: 2 | C148: 0 | D148: 0 | E148: 4 | F148: 0 | G148: 0 | H148: 0 | I148: 0 | J148: 0 | L148: 144 | M148: 360
A149: 397.5 | B149: 2 | C149: 0 | D149: 0 | E149: 4 | F149: 0 | G149: 0 | H149: 0 | I149: 0 | J149: 1 | L149: 145 | M149: 362.5
A150: 400 | B150: 2 | C150: 0 | D150: 0 | E150: 4 | F150: 0 | G150: 0 | H150: 0 | I150: 1 | J150: 0 | L150: 146 | M150: 365
A151: 402.5 | B151: 2 | C151: 0 | D151: 0 | E151: 4 | F151: 0 | G151: 0 | H151: 0 | I151: 1 | J151: 1 | L151: 147 | M151: 367.5
A152: 405 | B152: 2 | C152: 0 | D152: 0 | E152: 4 | F152: 0 | G152: 0 | H152: 1 | I152: 0 | J152: 0 | L152: 148 | M152: 370
A153: 407.5 | B153: 2 | C153: 0 | D153: 0 | E153: 4 | F153: 0 | G153: 0 | H153: 1 | I153: 0 | J153: 1 | L153: 149 | M153: 372.5
A154: 410 | B154: 2 | C154: 0 | D154: 0 | E154: 4 | F154: 0 | G154: 0 | H154: 1 | I154: 1 | J154: 0 | L154: 150 | M154: 375
A155: 412.5 | B155: 2 | C155: 0 | D155: 0 | E155: 4 | F155: 0 | G155: 0 | H155: 1 | I155: 1 | J155: 1 | L155: 151 | M155: 377.5
A156: 415 | B156: 2 | C156: 0 | D156: 0 | E156: 4 | F156: 0 | G156: 1 | H156: 0 | I156: 0 | J156: 0 | L156: 152 | M156: 380
A157: 417.5 | B157: 2 | C157: 0 | D157: 0 | E157: 4 | F157: 0 | G157: 1 | H157: 0 | I157: 0 | J157: 1 | L157: 153 | M157: 382.5
A158: 420 | B158: 2 | C158: 0 | D158: 0 | E158: 4 | F158: 0 | G158: 1 | H158: 0 | I158: 1 | J158: 0 | L158: 154 | M158: 385
A159: 422.5 | B159: 2 | C159: 0 | D159: 0 | E159: 4 | F159: 0 | G159: 1 | H159: 0 | I159: 1 | J159: 1 | L159: 155 | M159: 387.5
A160: 425 | B160: 2 | C160: 0 | D160: 0 | E160: 4 | F160: 1 | G160: 0 | H160: 0 | I160: 0 | J160: 0 | L160: 156 | M160: 390
A161: 427.5 | B161: 2 | C161: 0 | D161: 0 | E161: 4 | F161: 1 | G161: 0 | H161: 0 | I161: 0 | J161: 1 | L161: 157 | M161: 392.5
A162: 430 | B162: 2 | C162: 0 | D162: 0 | E162: 4 | F162: 1 | G162: 0 | H162: 0 | I162: 1 | J162: 0 | L162: 158 | M162: 395
A163: 432.5 | B163: 2 | C163: 0 | D163: 0 | E163: 4 | F163: 1 | G163: 0 | H163: 0 | I163: 1 | J163: 1 | L163: 159 | M163: 397.5
A164: 435 | B164: 2 | C164: 0 | D164: 0 | E164: 5 | F164: 0 | G164: 0 | H164: 0 | I164: 0 | J164: 0 | L164: 160 | M164: 400
A165: 437.5 | B165: 2 | C165: 0 | D165: 0 | E165: 5 | F165: 0 | G165: 0 | H165: 0 | I165: 0 | J165: 1 | L165: 161 | M165: 402.5
A166: 440 | B166: 2 | C166: 0 | D166: 0 | E166: 5 | F166: 0 | G166: 0 | H166: 0 | I166: 1 | J166: 0 | L166: 162 | M166: 405
A167: 442.5 | B167: 2 | C167: 0 | D167: 0 | E167: 5 | F167: 0 | G167: 0 | H167: 0 | I167: 1 | J167: 1 | L167: 163 | M167: 407.5
A168: 445 | B168: 2 | C168: 0 | D168: 0 | E168: 5 | F168: 0 | G168: 0 | H168: 1 | I168: 0 | J168: 0 | L168: 164 | M168: 410
A169: 447.5 | B169: 2 | C169: 0 | D169: 0 | E169: 5 | F169: 0 | G169: 0 | H169: 1 | I169: 0 | J169: 1 | L169: 165 | M169: 412.5
A170: 450 | B170: 2 | C170: 0 | D170: 0 | E170: 5 | F170: 0 | G170: 0 | H170: 1 | I170: 1 | J170: 0 | L170: 166 | M170: 415
A171: 452.5 | B171: 2 | C171: 0 | D171: 0 | E171: 5 | F171: 0 | G171: 0 | H171: 1 | I171: 1 | J171: 1 | L171: 167 | M171: 417.5
A172: 455 | B172: 2 | C172: 0 | D172: 0 | E172: 5 | F172: 0 | G172: 1 | H172: 0 | I172: 0 | J172: 0 | L172: 168 | M172: 420
A173: 457.5 | B173: 2 | C173: 0 | D173: 0 | E173: 5 | F173: 0 | G173: 1 | H173: 0 | I173: 0 | J173: 1 | L173: 169 | M173: 422.5
A174: 460 | B174: 2 | C174: 0 | D174: 0 | E174: 5 | F174: 0 | G174: 1 | H174: 0 | I174: 1 | J174: 0 | L174: 170 | M174: 425
A175: 462.5 | B175: 2 | C175: 0 | D175: 0 | E175: 5 | F175: 0 | G175: 1 | H175: 0 | I175: 1 | J175: 1 | L175: 171 | M175: 427.5
A176: 465 | B176: 2 | C176: 0 | D176: 0 | E176: 5 | F176: 1 | G176: 0 | H176: 0 | I176: 0 | J176: 0 | L176: 172 | M176: 430
A177: 467.5 | B177: 2 | C177: 0 | D177: 0 | E177: 5 | F177: 1 | G177: 0 | H177: 0 | I177: 0 | J177: 1 | L177: 173 | M177: 432.5
A178: 470 | B178: 2 | C178: 0 | D178: 0 | E178: 5 | F178: 1 | G178: 0 | H178: 0 | I178: 1 | J178: 0 | L178: 174 | M178: 435
A179: 472.5 | B179: 2 | C179: 0 | D179: 0 | E179: 5 | F179: 1 | G179: 0 | H179: 0 | I179: 1 | J179: 1 | L179: 175 | M179: 437.5
A180: 475 | B180: 2 | C180: 0 | D180: 0 | E180: 6 | F180: 0 | G180: 0 | H180: 0 | I180: 0 | J180: 0 | L180: 176 | M180: 440
A181: 477.5 | B181: 2 | C181: 0 | D181: 0 | E181: 6 | F181: 0 | G181: 0 | H181: 0 | I181: 0 | J181: 1 | L181: 177 | M181: 442.5
A182: 480 | B182: 2 | C182: 0 | D182: 0 | E182: 6 | F182: 0 | G182: 0 | H182: 0 | I182: 1 | J182: 0 | L182: 178 | M182: 445
A183: 482.5 | B183: 2 | C183: 0 | D183: 0 | E183: 6 | F183: 0 | G183: 0 | H183: 0 | I183: 1 | J183: 1 | L183: 179 | M183: 447.5
A184: 485 | B184: 2 | C184: 0 | D184: 0 | E184: 6 | F184: 0 | G184: 0 | H184: 1 | I184: 0 | J184: 0 | L184: 180 | M184: 450
A185: 487.5 | B185: 2 | C185: 0 | D185: 0 | E185: 6 | F185: 0 | G185: 0 | H185: 1 | I185: 0 | J185: 1 | L185: 181 | M185: 452.5
A186: 490 | B186: 2 | C186: 0 | D186: 0 | E186: 6 | F186: 0 | G186: 0 | H186: 1 | I186: 1 | J186: 0 | L186: 182 | M186: 455
A187: 492.5 | B187: 2 | C187: 0 | D187: 0 | E187: 6 | F187: 0 | G187: 0 | H187: 1 | I187: 1 | J187: 1 | L187: 183 | M187: 457.5
A188: 495 | B188: 2 | C188: 0 | D188: 0 | E188: 6 | F188: 0 | G188: 1 | H188: 0 | I188: 0 | J188: 0 | L188: 184 | M188: 460
A189: 497.5 | B189: 2 | C189: 0 | D189: 0 | E189: 6 | F189: 0 | G189: 1 | H189: 0 | I189: 0 | J189: 1 | L189: 185 | M189: 462.5
A190: 500 | B190: 2 | C190: 0 | D190: 0 | E190: 6 | F190: 0 | G190: 1 | H190: 0 | I190: 1 | J190: 0 | L190: 186 | M190: 465
A191: 502.5 | B191: 2 | C191: 0 | D191: 0 | E191: 6 | F191: 0 | G191: 1 | H191: 0 | I191: 1 | J191: 1 | L191: 187 | M191: 467.5
A192: 505 | B192: 2 | C192: 0 | D192: 0 | E192: 6 | F192: 1 | G192: 0 | H192: 0 | I192: 0 | J192: 0 | L192: 188 | M192: 470
A193: 507.5 | B193: 2 | C193: 0 | D193: 0 | E193: 6 | F193: 1 | G193: 0 | H193: 0 | I193: 0 | J193: 1 | L193: 189 | M193: 472.5
A194: 510 | B194: 2 | C194: 0 | D194: 0 | E194: 6 | F194: 1 | G194: 0 | H194: 0 | I194: 1 | J194: 0 | L194: 190 | M194: 475
A195: 512.5 | B195: 2 | C195: 0 | D195: 0 | E195: 6 | F195: 1 | G195: 0 | H195: 0 | I195: 1 | J195: 1 | L195: 191 | M195: 477.5
A196: 515 | B196: 2 | C196: 0 | D196: 0 | E196: 7 | F196: 0 | G196: 0 | H196: 0 | I196: 0 | J196: 0 | L196: 192 | M196: 480
A197: =IF(M197+$K$2>$L$1,0,M197+$K$2) -> 517.5 | B197: =IF(A197=0,0,MIN($B$1/2,INT(M197/(2*$B$2)))) -> 2 | C197: =IF(A197=0,0,MIN($C$1/2,INT(($M197-2*$B197*$B$2)/(2*$C$2)))) -> 0 | D197: =IF(A197=0,0,MIN($D$1/2,INT(($M197-2*$B197*$B$2-2*$C197*$C$2)/(2*$D$2)))) -> 0 | E197: =IF(A197=0,0,MIN($E$1/2,INT(($M197-2*$B197*$B$2-2*$C197*$C$2-2*$D197*$D$2)/(2*$E$2)))) -> 7 | F197: =IF(A197=0,0,MIN($F$1/2,INT(($M197-2*$B197*$B$2-2*$C197*$C$2-2*$D197*$D$2-2*$E197*$E$2)/(2*$F$2)))) -> 0 | G197: =IF(A197=0,0,MIN($G$1/2,INT(($M197-2*$B197*$B$2-2*$C197*$C$2-2*$D197*$D$2-2*$E197*$E$2-2*$F197*$F$2)/(2*$G$2)))) -> 0 | H197: =IF(A197=0,0,MIN($H$1/2,INT(($M197-2*$B197*$B$2-2*$C197*$C$2-2*$D197*$D$2-2*$E197*$E$2-2*$F197*$F$2-2*$G197*$G$2)/(2*$H$2)))) -> 0 | I197: =IF(A197=0,0,MIN($I$1/2,INT(($M197-2*$B197*$B$2-2*$C197*$C$2-2*$D197*$D$2-2*$E197*$E$2-2*$F197*$F$2-2*$G197*$G$2-2*$H197*$H$2)/(2*$I$2)))) -> 0 | J197: =IF(A197=0,0,MIN($J$1/2,INT(($M197-2*$B197*$B$2-2*$C197*$C$2-2*$D197*$D$2-2*$E197*$E$2-2*$F197*$F$2-2*$G197*$G$2-2*$H197*$H$2-2*$I197*$I$2)/(2*$J$2)))) -> 1 | L197: 193 | M197: =IF($A$2="Pounds",5*L197,2.5*L197) -> 482.5
A198: 520 | B198: 2 | C198: 0 | D198: 0 | E198: 7 | F198: 0 | G198: 0 | H198: 0 | I198: 1 | J198: 0 | L198: 194 | M198: 485
A199: 522.5 | B199: 2 | C199: 0 | D199: 0 | E199: 7 | F199: 0 | G199: 0 | H199: 0 | I199: 1 | J199: 1 | L199: 195 | M199: 487.5
A200: 525 | B200: 2 | C200: 0 | D200: 0 | E200: 7 | F200: 0 | G200: 0 | H200: 1 | I200: 0 | J200: 0 | L200: 196 | M200: 490
... 60 more rows
